Workbook

Sheet Organized
A1: Country | B1: Country ID | C1: Year | D1: MYPE | E1: CEBIRTH | F1: CEDEATH | G1: CEINMORT | H1: INFMORT | I1: EAPAGRIM | J1: EAPEXTRM | K1: EAPMANUM | L1: EAPCONSM | M1: EAPCMRCM | N1: EAPTRANM | O1: EAPSRVCM | P1: EAPOTHRM | Q1: EAPAGRIF | R1: EAPEXTRF | S1: EAPMANUF | T1: EAPCONSF | U1: EAPCMRCF | V1: EAPTRANF | W1: EAPSRVCF | X1: EAPOTHRF | Y1: EAPAGRIT | Z1: EAPEXTRT | AA1: EAPMANUT | AB1: EAPCONST | AC1: EAPCMRCT | AD1: EAPTRANT | AE1: EAPSRVCT | AF1: EAPOTHRT | AG1: UNEMNUM | AH1: UNEMPRCT | AI1: IDSTRKE | AJ1: IDWORKRS | AK1: IDDAYS | AL1: INDPRD01 | AM1: INDPRD02 | AN1: INDPRD11 | AO1: INDPRD12 | AP1: INDPRD21 | AQ1: INDPRD22 | AR1: OUTPETRL | AS1: OUTPETR2 | AT1: OUTNATGS | AU1: OUTNATG2 | AV1: OUTELEC | AW1: OUTELEC2 | AX1: EXTRDIMP | AY1: EXTRDIM2 | AZ1: EXIM%GFD | BA1: EXIM%GDP | BB1: EXIM%GNP | BC1: EXTRDEXT | BD1: EXTRDEX2 | BE1: EXEX%GFD | BF1: EXEX%GDP | BG1: EXEX%GNP | BH1: MONEYM1 | BI1: MONEYM12 | BJ1: MOM1%GFD | BK1: MOM1%GDP | BL1: MOM1%GNP | BM1: MONEYM2 | BN1: MONEYM22 | BO1: MOM2%GFD | BP1: MOM2%GDP | BQ1: MOM2%GNP | BR1: CENGOVEX | BS1: CENGOVX2 | BT1: CGEX%GFD | BU1: CGEX%GDP | BV1: CGEX%GNP | BW1: CGRTOTL | BX1: CGRTOTL2 | BY1: CGRT%GFD | BZ1: CGRT%GDP | CA1: CGRT%GNP | CB1: CGRCSTMS | CC1: CGRCSTM2 | CD1: CGRC%GFD | CE1: CGRC%GDP | CF1: CGRC%GNP | CG1: CGRINTRL | CH1: CGRI%GFD | CI1: CGRI%GDP | CJ1: CGRI%GNP | CK1: CGREXCES | CL1: CGREXCE2 | CM1: CGRE%GFD | CN1: CGRE%GDP | CO1: CGRE%GNP | CP1: CGRSALES | CQ1: CGRSALE2 | CR1: CGRS%GFD | CS1: CGRS%GDP | CT1: CGRS%GNP | CU1: CGRINCM | CV1: CGRINCM2 | CW1: CGRM%GFD | CX1: CGRM%GDP | CY1: CGRM%GNP | CZ1: CGRINCMW | DA1: CGRINCW2 | DB1: CGRW%GFD | DC1: CGRW%GDP | DD1: CGRW%GNP | DE1: CGRSSTAX | DF1: CGRSSTX2 | DG1: CGRX%GFD | DH1: CGRX%GDP | DI1: CGRX%GNP | DJ1: CGRDIRCT | DK1: CGRDIRC2 | DL1: CGRD%GFD | DM1: CGRD%GDP | DN1: CGRD%GNP | DO1: CGRVAT | DP1: CGRVAT2 | DQ1: CGRV%GFD | DR1: CGRV%GDP | DS1: CGRV%GNP | DT1: CGRIPT | DU1: CGRIPT2 | DV1: CGRIPT%GFD | DW1: CGRIPT%GDP | DX1: CGRIPT%GNP | DY1: CGRSTT | DZ1: CGRSTT2 | EA1: CGRZ%GFD | EB1: CGRZ%GDP | EC1: CGRZ%GNP | ED1: CGRPROFT | EE1: CGRPROF2 | EF1: CGRP%GFD | EG1: CGRP%GDP | EH1: CGRP%GNP | EI1: CGRPETRT | EJ1: CGRPETR2 | EK1: CGRR%GFD | EL1: CGRR%GDP | EM1: CGRR%GNP | EN1: CGROIL | EO1: CGROIL2 | EP1: CGRCONST | EQ1: CGRCONS2 | ER1: CGRN%GFD | ES1: CGRN%GDP | ET1: CGRN%GNP | EU1: CGRTOBAM | EV1: CGRB%GFD | EW1: CGRB%GDP | EX1: CGRB%GNP | EY1: CGRPTM | EZ1: CGRPTM2 | FA1: CGRL%GFD | FB1: CGRL%GDP | FC1: CGRL%GNP | FD1: CGRAUTO | FE1: CGRAUTO2 | FF1: CGRU%GFD | FG1: CGRU%GDP | FH1: CGRU%GNP | FI1: CGRLIPT | FJ1: CGRLIPT2 | FK1: CGRY%GFD | FL1: CGRY%GDP | FM1: CGRY%GFD | FN1: CGRTURNO | FO1: CGRTURN2 | FP1: CGRO%GFD | FQ1: CGRO%GDP | FR1: CGRO%GNP | FS1: CGRSTM | FT1: CGRA%GFD | FU1: CGRA%GDP | FV1: CGRA%GNP | FW1: CGRREGIT | FX1: CGRREGI2 | FY1: CGRG%GFD | FZ1: CGRG%GDP | GA1: CGRG%GNP | GB1: CGRTRNTT | GC1: CGRTRNT2 | GD1: CGRQ%GFD | GE1: CGRQ%GDP | GF1: CGRQ%GNP | GG1: WHLPRCI1 | GH1: WHLPRCI2 | GI1: CONPRCI1 | GJ1: CONPRCI2 | GK1: PTSPUPRM | GL1: PTSPUSEC | GM1: PTSPUALL | GN1: PTSTEPRM | GO1: PTSTEPR2 | GP1: PTSTESEC | GQ1: PTSTESE2 | GR1: PTSTEALL | GS1: STUUNVST | GT1: STUUNVS2 | GU1: GDPGFD | GV1: NATGDP | GW1: NATGDP2 | GX1: NATGNP | GY1: NATGNP2 | GZ1: NATNNP | HA1: NATNNP2 | HB1: NATGPFCF | HC1: NATGPFC2 | HD1: RLPROTE | HE1: RLCATHO | HF1: RLJEWS | HG1: RLOTHERS | HH1: RLL1 | HI1: RLl2 | HJ1: RLl3 | HK1: RLBIL | HL1: RLNOL | HM1: GGPADMIN | HN1: GGPADMI2 | HO1: GGPPRCJU | HP1: GGPPRCPO | HQ1: GGPGAPOP | HR1: GGPGALAB | HS1: GGPGAPER | HT1: GGPOPEDU | HU1: GGPOPPST | HV1: GGPOPRAL | HW1: GGPPERSN | HX1: GGPPERS2 | HY1: GGPPPOP | HZ1: GGPPLAB | IA1: TRGGGDP | IB1: TRGGNDP | IC1: TRCGGDP | ID1: TRCGNDP | IE1: CENTRLZN | IF1: GGTTOTAL | IG1: GGTDIRCT | IH1: GGTINCME | II1: GGTOBJT | IJ1: GGTINHER | IK1: GGTINDRT | IL1: GGTCUSTM | IM1: GGTEXCSE | IN1: GGTTURNO | IO1: GGTOTHER | IP1: CGTTOTAL | IQ1: CGTDIRTX | IR1: CGTINCTX | IS1: CGTPROT | IT1: CGTINHER | IU1: CGTEXTRA | IV1: CGTASES | IW1: CGTLAND | IX1: CGTTRADE | IY1: CGTCORP | IZ1: CGTOTOBJ | JA1: CGTINDIR | JB1: CGTCUSTM | JC1: CGTEXCS | JD1: CGTTURN | JE1: CGTOTHER | JF1: PEGGCOST | JG1: PEGGCOS2 | JH1: PEGGGDP | JI1: PEGGNDP | JJ1: PECGCOST | JK1: PECGCOS2 | JL1: PECGGDP | JM1: PECGNDP | JN1: PECCENTR | JO1: PECREGNL | JP1: PECLOCAL | JQ1: CGEMGDPT | JR1: CGEMGDPD | JS1: CGEMGDPA | JT1: CGEMGDPE | JU1: CGEMGDPS | JV1: CGEMGDPR | JW1: CGEMEXPD | JX1: CGEMEXPA | JY1: CGEMEXPE | JZ1: CGEMEXPS | KA1: CGEMEXPR | KB1: CGETOTAL | KC1: CGETOTA2 | KD1: CGEEXPDF | KE1: CGEEXPGA | KF1: CGEEXPJP | KG1: CGEEXPES | KH1: CGEEXPTC | KI1: CGEEXPSS | KJ1: CGEEXPPH | KK1: CGEEXPHO | KL1: CGEEXPES | KM1: CGEEXPDI | KN1: GGEMGDPT | KO1: GGEMGDPD | KP1: GGEMGDPA | KQ1: GGEMGDPE | KR1: GGEMGDPS | KS1: GGEMGDPR | KT1: GGEMEXPD | KU1: GGEMEXPA | KV1: GGEMEXPE | KW1: GGEMEXPS | KX1: GGEMEXPR | KY1: GGETOTAL | KZ1: GGETOTA2 | LA1: GGEEXPDF | LB1: GGEEXPGA | LC1: GGEEXPJP | LD1: GGEEXPES | LE1: GGEEXPTC | LF1: GGEEXPSS | LG1: GGEEXPPH | LH1: GGEEXPHO | LI1: GGEEXPES | LJ1: GGEEXPDI | LK1: ERSSEGDP | LL1: ERSPEGDP | LM1: ERPBGDP | LN1: ERHBGDP | LO1: ERUBGDP | LP1: ERFAGDP | LQ1: FSSSPATR | LR1: FSSSCETR | LS1: SICPENI | LT1: SICHLTHI | LU1: SICOINJI | LV1: SICUNEMI | LW1: NCURGDPM | LX1: NCURNDPM | LY1: NCURNDPF | LZ1: NCURGMPC | MA1: NCURNFPC | MB1: NCONGDPM | MC1: NCONNDPM | MD1: NCONNDPF | ME1: NCONGMPC | MF1: NCONNFPC | MG1: OPGDPMAG | MH1: OPGDPMIN | MI1: OPGDPMSR | MJ1: OPGNMCPR | MK1: OPGNMCPU | ML1: OPGNMCTL | MM1: OPGNMINF | MN1: OPGNMIGF | MO1: OPGNMICS | MP1: OPGNMITL | MQ1: OPGNMEXP | MR1: OPGNMIMP | MS1: PPVVTURN | MT1: PPVLEFTVOT | MU1: PPVRTVOT | MV1: PPVCNVOT | MW1: PPVRTCRV | MX1: PPVCNCRV | MY1: PPVRTCTV | MZ1: PPVCNCTV | NA1: PPVNATVO | NB1: PPVLIBVO | NC1: PPVUNKVO | ND1: PPVOTHVO | NE1: PPVCNLFT | NF1: PPVCNRTV | NG1: PPVLFTCR | NH1: PPVLEFTS | NI1: PPVRTSEA | NJ1: PPVCNSEA | NK1: PPVRTCRS | NL1: PPVCNCRS | NM1: PPVRTCTS | NN1: PPVCNCTS | NO1: PPVNATSE | NP1: PPVLIBSE | NQ1: PPVUNKSE | NR1: PPVOTHSE | NS1: PPVLFCRS | NT1: LEFTCAB | NU1: LEFTMAJ | NV1: LTCABCUM | NW1: CNCAB | NX1: CNMAJ | NY1: CNCABCUM | NZ1: CNCRCAB | OA1: CNCRMAJ | OB1: CNCRCUM | OC1: CNCTCAB | OD1: CNCTMAJ | OE1: CNCTCUM | OF1: RTCAB | OG1: RTMAJ | OH1: RTCABCUM | OI1: RTCRCAB | OJ1: RTCRMAJ | OK1: RTCRCUM | OL1: RTCTCAB | OM1: RTCTMAJ | ON1: RTCTCUM
A2: Argentina | B2: 1 | C2: 1870 | D2: 1859 | E2: 46.2 | F2: 30.7 | G2: 185 | AX2: 49 | AY2: 49 | BC2: 30 | BD2: 30 | BR2: 19 | BS2: 19 | BW2: 15 | BX2: 15
A3: Argentina | B3: 1 | C3: 1871 | D3: 1910 | AX3: 46 | AY3: 46 | BC3: 27 | BD3: 27 | BR3: 21 | BS3: 21 | BW3: 13 | BX3: 13
A4: Argentina | B4: 1 | C4: 1872 | D4: 1963 | AX4: 62 | AY4: 62 | BC4: 47 | BD4: 47 | BR4: 26 | BS4: 26 | BW4: 18 | BX4: 18
A5: Argentina | B5: 1 | C5: 1873 | D5: 2017 | AX5: 73 | AY5: 73 | BC5: 47 | BD5: 47 | BR5: 31 | BS5: 31 | BW5: 20 | BX5: 20
A6: Argentina | B6: 1 | C6: 1874 | D6: 2073 | AX6: 58 | AY6: 58 | BC6: 45 | BD6: 45 | BR6: 30 | BS6: 30 | BW6: 16 | BX6: 16
A7: Argentina | B7: 1 | C7: 1875 | D7: 2132 | E7: 45.6 | F7: 30 | G7: 181 | AX7: 58 | AY7: 58 | BC7: 52 | BD7: 52 | BR7: 29 | BS7: 29 | BW7: 17 | BX7: 17
A8: Argentina | B8: 1 | C8: 1876 | D8: 2192 | AX8: 36 | AY8: 36 | BC8: 48 | BD8: 48 | BR8: 22 | BS8: 22 | BW8: 14 | BX8: 14
A9: Argentina | B9: 1 | C9: 1877 | D9: 2255 | AX9: 40 | AY9: 40 | BC9: 45 | BD9: 45 | BR9: 20 | BS9: 20 | BW9: 15 | BX9: 15
A10: Argentina | B10: 1 | C10: 1878 | D10: 2320 | AX10: 44 | AY10: 44 | BC10: 37 | BD10: 37 | BR10: 21 | BS10: 21 | BW10: 18 | BX10: 18
A11: Argentina | B11: 1 | C11: 1879 | D11: 2387 | AX11: 46 | AY11: 46 | BC11: 49 | BD11: 49 | BR11: 23 | BS11: 23 | BW11: 21 | BX11: 21
A12: Argentina | B12: 1 | C12: 1880 | D12: 2457 | E12: 45 | F12: 29.1 | G12: 179 | AX12: 46 | AY12: 46 | BC12: 58 | BD12: 58 | BR12: 27 | BS12: 27 | BW12: 20 | BX12: 20
A13: Argentina | B13: 1 | C13: 1881 | D13: 2529 | AX13: 56 | AY13: 56 | BC13: 58 | BD13: 58 | BR13: 28 | BS13: 28 | BW13: 21 | BX13: 21 | GL13: 1.6
A14: Argentina | B14: 1 | C14: 1882 | D14: 2602 | AX14: 61 | AY14: 61 | BC14: 60 | BD14: 60 | BR14: 58 | BS14: 58 | BW14: 27 | BX14: 27 | GK14: 98 | GL14: 2.3
A15: Argentina | B15: 1 | C15: 1883 | D15: 2678 | AX15: 80 | AY15: 80 | BC15: 60 | BD15: 60 | BR15: 45 | BS15: 45 | BW15: 31 | BX15: 31 | GK15: 108
A16: Argentina | B16: 1 | C16: 1884 | D16: 2757 | AX16: 94 | AY16: 94 | BC16: 68 | BD16: 68 | BR16: 56 | BS16: 56 | BW16: 38 | BX16: 38 | GU16: 370
A17: Argentina | B17: 1 | C17: 1885 | D17: 2839 | E17: 44.6 | F17: 27.6 | G17: 171 | AX17: 92 | AY17: 92 | BC17: 84 | BD17: 84 | BR17: 56 | BS17: 56 | BW17: 27 | BX17: 27 | GK17: 168 | GS17: 880 | GT17: 0.88 | GU17: 480
A18: Argentina | B18: 1 | C18: 1886 | D18: 2923 | AX18: 95 | AY18: 95 | BC18: 70 | BD18: 70 | BR18: 54 | BS18: 54 | BW18: 30 | BX18: 30 | GU18: 490
A19: Argentina | B19: 1 | C19: 1887 | D19: 3011 | AX19: 117 | AY19: 117 | BC19: 84 | BD19: 84 | BR19: 65 | BS19: 65 | BW19: 38 | BX19: 38 | GS19: 743 | GT19: 0.743 | GU19: 530
A20: Argentina | B20: 1 | C20: 1888 | D20: 3108 | AX20: 128 | AY20: 128 | BC20: 100 | BD20: 100 | BR20: 76 | BS20: 76 | BW20: 35 | BX20: 35 | GU20: 580
A21: Argentina | B21: 1 | C21: 1889 | D21: 3212 | AX21: 165 | AY21: 165 | BC21: 123 | BD21: 123 | BR21: 107 | BS21: 107 | BW21: 38 | BX21: 38 | GS21: 963 | GT21: 0.963 | GU21: 820
A22: Argentina | B22: 1 | C22: 1890 | D22: 3323 | E22: 42.9 | F22: 25.1 | G22: 162 | AX22: 142 | AY22: 142 | BC22: 101 | BD22: 101 | BR22: 95 | BS22: 95 | BW22: 29 | BX22: 29 | GS22: 1007 | GT22: 1.007 | GU22: 1100
A23: Argentina | B23: 1 | C23: 1891 | D23: 3434 | AX23: 67 | AY23: 67 | BC23: 103 | BD23: 103 | BR23: 129 | BS23: 129 | BW23: 19 | BX23: 19 | GS23: 900 | GT23: 0.9 | GU23: 1530
A24: Argentina | B24: 1 | C24: 1892 | D24: 3548 | AX24: 91 | AY24: 91 | BC24: 113 | BD24: 113 | BR24: 129 | BS24: 129 | BW24: 33 | BX24: 33 | GK24: 228 | GL24: 3.2 | GU24: 1330
A25: Argentina | B25: 1 | C25: 1893 | D25: 3668 | AX25: 96 | AY25: 96 | BC25: 94 | BD25: 94 | BR25: 123 | BS25: 123 | BW25: 38 | BX25: 38 | GK25: 250 | GU25: 1310
A26: Argentina | B26: 1 | C26: 1894 | D26: 3793 | AX26: 93 | AY26: 93 | BC26: 102 | BD26: 102 | BR26: 143 | BS26: 143 | BW26: 34 | BX26: 34 | GK26: 248 | GN26: 8 | GO26: 8 | GU26: 1380
A27: Argentina | B27: 1 | C27: 1895 | D27: 3906 | E27: 42.4 | F27: 23.8 | G27: 155 | I27: 326 | K27: 185 | M27: 133 | N27: 63 | O27: 288 | P27: 524 | Q27: 67 | S27: 181 | U27: 10 | W27: 211 | X27: 664 | AX27: 95 | AY27: 95 | BC27: 120 | BD27: 120 | BR27: 167 | BS27: 167 | BW27: 132 | BX27: 132 | CB27: 94 | CC27: 94 | CZ27: 4.2 | DA27: 4.2 | GK27: 202 | GN27: 6.9 | GO27: 6.9 | GU27: 1660
A28: Argentina | B28: 1 | C28: 1896 | D28: 4013 | AX28: 112 | AY28: 112 | BC28: 117 | BD28: 117 | BR28: 230 | BS28: 230 | BW28: 124 | BX28: 124 | CB28: 86 | CC28: 86 | CZ28: 3.6 | DA28: 3.6 | GK28: 283 | GL28: 4.4 | GN28: 8.9 | GO28: 8.9 | GU28: 1520
A29: Argentina | B29: 1 | C29: 1897 | D29: 4152 | AX29: 98 | AY29: 98 | BC29: 101 | BD29: 101 | BR29: 179 | BS29: 179 | BW29: 151 | BX29: 151 | CB29: 82 | CC29: 82 | CZ29: 6.2 | DA29: 6.2 | GK29: 298 | GN29: 9.3 | GO29: 9.3 | GU29: 1480
A30: Argentina | B30: 1 | C30: 1898 | D30: 4296 | AX30: 107 | AY30: 107 | BC30: 134 | BD30: 134 | BR30: 311 | BS30: 311 | BW30: 136 | BX30: 136 | CB30: 75 | CC30: 75 | CZ30: 5.4 | DA30: 5.4 | GK30: 318 | GL30: 6.1 | GN30: 9.6 | GO30: 9.6 | GS30: 2553 | GT30: 2.553 | GU30: 1540
A31: Argentina | B31: 1 | C31: 1899 | D31: 4418 | AX31: 117 | AY31: 117 | BC31: 185 | BD31: 185 | BR31: 174 | BS31: 174 | BW31: 166 | BX31: 166 | CB31: 89 | CC31: 89 | CZ31: 4.9 | DA31: 4.9 | GK31: 381 | GN31: 11 | GO31: 11 | GU31: 1450
A32: Argentina | B32: 1 | C32: 1900 | D32: 4542 | E32: 41 | F32: 21.6 | G32: 146 | AX32: 113 | AY32: 113 | BC32: 155 | BD32: 155 | BR32: 159 | BS32: 159 | BW32: 151 | BX32: 151 | CB32: 73 | CC32: 73 | CZ32: 5.1 | DA32: 5.1 | GK32: 387 | GN32: 11 | GO32: 11 | GU32: 1590
A33: Argentina | B33: 1 | C33: 1901 | D33: 4674 | AX33: 114 | AY33: 114 | BC33: 168 | BD33: 168 | BR33: 163 | BS33: 163 | BW33: 151 | BX33: 151 | CB33: 72 | CC33: 72 | CZ33: 5.2 | DA33: 5.2 | GK33: 393 | GN33: 11 | GO33: 11 | GU33: 1510
A34: Argentina | B34: 1 | C34: 1902 | D34: 4806 | AX34: 103 | AY34: 103 | BC34: 179 | BD34: 179 | BR34: 203 | BS34: 203 | BW34: 156 | BX34: 156 | CB34: 67 | CC34: 67 | CZ34: 5.5 | DA34: 5.5 | GK34: 412 | GN34: 12 | GO34: 12 | GS34: 3 | GT34: 3 | GU34: 1630
A35: Argentina | B35: 1 | C35: 1903 | D35: 4924 | AX35: 131 | AY35: 131 | BC35: 221 | BD35: 221 | BR35: 183 | BS35: 183 | BW35: 172 | BX35: 172 | CB35: 91 | CC35: 91 | CZ35: 5.4 | DA35: 5.4 | GK35: 427 | GN35: 13 | GO35: 13 | GU35: 1750
A36: Argentina | B36: 1 | C36: 1904 | D36: 5040 | AX36: 187 | AY36: 187 | BC36: 264 | BD36: 264 | BR36: 195 | BS36: 195 | BW36: 199 | BX36: 199 | CB36: 97 | CC36: 97 | CZ36: 5.5 | DA36: 5.5 | GK36: 478 | GN36: 13 | GO36: 13 | GS36: 3.7 | GT36: 3.7 | GU36: 1980
A37: Argentina | B37: 1 | C37: 1905 | D37: 5197 | E37: 40 | F37: 20.1 | G37: 138 | AX37: 205 | AY37: 205 | BC37: 323 | BD37: 323 | BR37: 322 | BS37: 322 | BW37: 212 | BX37: 212 | CB37: 105 | CC37: 105 | CZ37: 5.8 | DA37: 5.8 | GK37: 541 | GN37: 14 | GO37: 14 | GU37: 2450
A38: Argentina | B38: 1 | C38: 1906 | D38: 5407 | AX38: 270 | AY38: 270 | BC38: 292 | BD38: 292 | BR38: 270 | BS38: 270 | BW38: 232 | BX38: 232 | CB38: 121 | CC38: 121 | CZ38: 5 | DA38: 5 | GK38: 503 | GN38: 15 | GO38: 15 | GU38: 2730
A39: Argentina | B39: 1 | C39: 1907 | D39: 5673 | AX39: 286 | AY39: 286 | BC39: 296 | BD39: 296 | BR39: 253 | BS39: 253 | BW39: 246 | BX39: 246 | CB39: 129 | CC39: 129 | CZ39: 8.7 | DA39: 8.7 | GK39: 570 | GN39: 16 | GO39: 16 | GU39: 2860
A40: Argentina | B40: 1 | C40: 1908 | D40: 5988 | AX40: 273 | AY40: 273 | BC40: 366 | BD40: 366 | BR40: 252 | BS40: 252 | BW40: 263 | BX40: 263 | CB40: 137 | CC40: 137 | CZ40: 8.7 | DA40: 8.7 | GK40: 592 | GN40: 17 | GO40: 17 | GU40: 3030
A41: Argentina | B41: 1 | C41: 1909 | D41: 6288 | AX41: 303 | AY41: 303 | BC41: 397 | BD41: 397 | BR41: 392 | BS41: 392 | BW41: 285 | BX41: 285 | CB41: 150 | CC41: 150 | CZ41: 9 | DA41: 9 | GK41: 671 | GN41: 19 | GO41: 19 | GS41: 10 | GT41: 10 | GU41: 3460
A42: Argentina | B42: 1 | C42: 1910 | D42: 6615 | E42: 40.3 | F42: 17.7 | G42: 121 | AX42: 352 | AY42: 352 | BC42: 373 | BD42: 373 | BR42: 411 | BS42: 411 | BW42: 308 | BX42: 308 | CB42: 173 | CC42: 173 | CZ42: 9.3 | DA42: 9.3 | GK42: 694 | GN42: 20 | GO42: 20 | GU42: 4010
A43: Argentina | B43: 1 | C43: 1911 | D43: 6934 | H43: 148 | AX43: 920 | AY43: 920 | BC43: 778 | BD43: 778 | BR43: 417 | BS43: 417 | BW43: 316 | BX43: 316 | CB43: 177 | CC43: 177 | CZ43: 9.6 | DA43: 9.6 | GK43: 735 | GN43: 22 | GO43: 22 | GU43: 4060
A44: Argentina | B44: 1 | C44: 1912 | D44: 7268 | H44: 143 | AX44: 1016 | AY44: 1016 | BC44: 1140 | BD44: 1140 | BR44: 404 | BS44: 404 | BW44: 363 | BX44: 363 | CB44: 188 | CC44: 188 | CZ44: 12 | DA44: 12 | GK44: 780 | GN44: 24 | GO44: 24 | GU44: 4500
A45: Argentina | B45: 1 | C45: 1913 | D45: 7652 | H45: 130 | AX45: 1128 | AY45: 1128 | BC45: 1180 | BD45: 1180 | BR45: 403 | BS45: 403 | BW45: 370 | BX45: 370 | CB45: 199 | CC45: 199 | CZ45: 10 | DA45: 10 | GG45: 71 | GH45: 0.0001106966982 | GI45: 100 | GJ45: 0.001217493663 | GK45: 843 | GN45: 23 | GO45: 23 | GS45: 7.5 | GT45: 7.5 | GU45: 4550
A46: Argentina | B46: 1 | C46: 1914 | D46: 7917 | H46: 125 | I46: 488 | J46: 1 | K46: 487 | M46: 272 | N46: 109 | O46: 229 | P46: 891 | Q46: 42 | S46: 353 | U46: 21 | V46: 2 | W46: 241 | X46: 26 | AX46: 733 | AY46: 733 | BC46: 916 | BD46: 916 | BR46: 420 | BS46: 420 | BW46: 273 | BX46: 273 | CB46: 118 | CC46: 118 | CZ46: 10 | DA46: 10 | GG46: 72 | GH46: 0.0001122558067 | GI46: 100 | GJ46: 0.001217493663 | GK46: 863 | GL46: 19 | GN46: 25 | GO46: 25 | GU46: 3947
A47: Argentina | B47: 1 | C47: 1915 | D47: 8072 | E47: 36.1 | F47: 16.5 | G47: 113 | H47: 124 | AR47: 76 | AS47: 76 | AX47: 694 | AY47: 694 | BC47: 1323 | BD47: 1323 | BR47: 391 | BS47: 391 | BW47: 252 | BX47: 252 | CB47: 95 | CC47: 95 | GG47: 77 | GH47: 0.0001200513488 | GI47: 107 | GJ47: 0.00130271822 | GK47: 914 | GL47: 27 | GN47: 27 | GO47: 27 | GS47: 7.1 | GT47: 7.1 | GU47: 4307
A48: Argentina | B48: 1 | C48: 1916 | D48: 8225 | H48: 124 | AR48: 130 | AS48: 130 | AX48: 832 | AY48: 832 | BC48: 1302 | BD48: 1302 | BR48: 375 | BS48: 375 | BW48: 255 | BX48: 255 | CB48: 105 | CC48: 105 | GG48: 88 | GH48: 0.0001372015415 | GI48: 115 | GJ48: 0.001400117713 | GK48: 938 | GU48: 4428
A49: Argentina | B49: 1 | C49: 1917 | D49: 8374 | H49: 128 | AR49: 180 | AS49: 180 | AX49: 864 | AY49: 864 | BC49: 1250 | BD49: 1250 | BR49: 390 | BS49: 390 | BW49: 254 | BX49: 254 | CB49: 97 | CC49: 97 | GG49: 109 | GH49: 0.0001699428184 | GI49: 135 | GJ49: 0.001643616446 | GK49: 1003 | GN49: 35 | GO49: 35 | GS49: 14 | GT49: 14 | GU49: 4820
A50: Argentina | B50: 1 | C50: 1918 | D50: 8517 | H50: 138 | AR50: 199 | AS50: 199 | AX50: 1138 | AY50: 1138 | BC50: 1822 | BD50: 1822 | BR50: 421 | BS50: 421 | BW50: 322 | BX50: 322 | CB50: 139 | CC50: 139 | GG50: 119 | GH50: 0.0001855339027 | GI50: 169 | GJ50: 0.002057564291 | GK50: 1020 | GN50: 33 | GO50: 33 | GS50: 15 | GT50: 15 | GU50: 7132
A51: Argentina | B51: 1 | C51: 1919 | D51: 8672 | H51: 134 | AR51: 172 | AS51: 172 | AX51: 1490 | AY51: 1490 | BC51: 2343 | BD51: 2343 | BR51: 428 | BS51: 428 | BW51: 401 | BX51: 401 | CB51: 180 | CC51: 180 | CZ51: 14 | DA51: 14 | GG51: 123 | GH51: 0.0001917703364 | GI51: 160 | GJ51: 0.001947989861 | GK51: 1058 | GN51: 37 | GO51: 37 | GS51: 14 | GT51: 14 | GU51: 7026
A52: Argentina | B52: 1 | C52: 1920 | D52: 8861 | E52: 34.3 | F52: 14 | G52: 100 | H52: 127 | AR52: 243 | AS52: 243 | AX52: 2125 | AY52: 2125 | BC52: 2373 | BD52: 2373 | BR52: 488 | BS52: 488 | BW52: 509 | BX52: 509 | CB52: 297 | CC52: 297 | CZ52: 15 | DA52: 15 | GG52: 129 | GH52: 0.000201124987 | GI52: 186 | GJ52: 0.002264538214 | GK52: 1121 | GN52: 36 | GO52: 36 | GS52: 15 | GT52: 15 | GU52: 8727
A53: Argentina | B53: 1 | C53: 1921 | D53: 9092 | H53: 116 | AR53: 323 | AS53: 323 | AX53: 1703 | AY53: 1703 | BC53: 1525 | BD53: 1525 | BR53: 560 | BS53: 560 | BW53: 470 | BX53: 470 | CB53: 203 | CC53: 203 | GG53: 102 | GH53: 0.0001590290595 | GI53: 167 | GJ53: 0.002033214418 | GK53: 1164 | GU53: 8035
A54: Argentina | B54: 1 | C54: 1922 | D54: 9368 | H54: 112 | AR54: 439 | AS54: 439 | AX54: 1567 | AY54: 1567 | BC54: 1536 | BD54: 1536 | BR54: 614 | BS54: 614 | BW54: 453 | BX54: 453 | CB54: 206 | CC54: 206 | CZ54: 16 | DA54: 16 | GG54: 93 | GH54: 0.0001449970836 | GI54: 139 | GJ54: 0.001692316192 | GK54: 1230 | GN54: 40 | GO54: 40 | GU54: 7250
A55: Argentina | B55: 1 | C55: 1923 | D55: 9706 | H55: 112 | AR55: 497 | AS55: 497 | AX55: 1974 | AY55: 1974 | BC55: 1753 | BD55: 1753 | BR55: 632 | BS55: 632 | BW55: 542 | BX55: 542 | CB55: 268 | CC55: 268 | CZ55: 16 | DA55: 16 | GG55: 96 | GH55: 0.0001496744089 | GI55: 137 | GJ55: 0.001667966319 | GK55: 1261 | GU55: 7926
A56: Argentina | B56: 1 | C56: 1924 | D56: 10054 | H56: 116 | AI56: 71 | AJ56: 279 | AR56: 677 | AS56: 677 | AX56: 1883 | AY56: 1883 | BC56: 2299 | BD56: 2299 | BR56: 671 | BS56: 671 | BW56: 597 | BX56: 597 | CB56: 296 | CC56: 296 | CZ56: 22 | DA56: 22 | GG56: 104 | GH56: 0.0001621472763 | GI56: 139 | GJ56: 0.001692316192 | GK56: 1267 | GU56: 8675
A57: Argentina | B57: 1 | C57: 1925 | D57: 10398 | E57: 32.4 | F57: 13.1 | G57: 96 | H57: 121 | AI57: 86 | AJ57: 14 | AR57: 924 | AS57: 924 | AX57: 1993 | AY57: 1993 | BC57: 1973 | BD57: 1973 | BR57: 713 | BS57: 713 | BW57: 663 | BX57: 663 | CB57: 350 | CC57: 350 | CZ57: 23 | DA57: 23 | GG57: 105 | GH57: 0.0001637063847 | GI57: 136 | GJ57: 0.001655791382 | GK57: 1273 | GU57: 8376
A58: Argentina | B58: 1 | C58: 1926 | D58: 10692 | H58: 119 | AI58: 62 | AJ58: 15 | AR58: 1143 | AS58: 1143 | AX58: 1869 | AY58: 1869 | BC58: 1800 | BD58: 1800 | BR58: 746 | BS58: 746 | BW58: 640 | BX58: 640 | CB58: 304 | CC58: 304 | CZ58: 24 | DA58: 24 | GG58: 94 | GH58: 0.000146556192 | GI58: 132 | GJ58: 0.001607091636 | GK58: 1279 | GU58: 8505
A59: Argentina | B59: 1 | C59: 1927 | D59: 10965 | H59: 126 | AI59: 56 | AJ59: 27 | AK59: 363 | AR59: 1263 | AS59: 1263 | AV59: 1045 | AW59: 1045 | AX59: 1947 | AY59: 1947 | BC59: 2294 | BD59: 2294 | BR59: 1049 | BS59: 1049 | BW59: 681 | BX59: 681 | CB59: 313 | CC59: 313 | CZ59: 25 | DA59: 25 | GG59: 92 | GH59: 0.0001434379752 | GI59: 131 | GJ59: 0.001594916699 | GK59: 1312 | GN59: 45 | GO59: 45 | GU59: 9109
A60: Argentina | B60: 1 | C60: 1928 | D60: 11282 | H60: 113 | AI60: 137 | AJ60: 74 | AK60: 251 | AR60: 1318 | AS60: 1318 | AV60: 1130 | AW60: 1130 | AX60: 1902 | AY60: 1902 | BC60: 2396 | BD60: 2396 | BR60: 919 | BS60: 919 | BW60: 739 | BX60: 739 | CB60: 358 | CC60: 358 | CZ60: 26 | DA60: 26 | GG60: 93 | GH60: 0.0001449970836 | GI60: 117 | GJ60: 0.001424467586 | GK60: 1350 | GL60: 41 | GN60: 50 | GO60: 50 | GS60: 17 | GT60: 17 | GU60: 8583
A61: Argentina | B61: 1 | C61: 1929 | D61: 11592 | H61: 107 | AI61: 116 | AJ61: 53 | AK61: 543 | AR61: 1362 | AS61: 1362 | AT61: 260 | AU61: 260 | AV61: 1292 | AW61: 1292 | AX61: 1959 | AY61: 1959 | BC61: 2168 | BD61: 2168 | BR61: 988 | BS61: 988 | BW61: 748 | BX61: 748 | CB61: 356 | CC61: 356 | CZ61: 27 | DA61: 27 | GG61: 91 | GH61: 0.0001418788668 | GI61: 131 | GJ61: 0.001594916699 | GK61: 1407 | GL61: 45 | GN61: 49 | GO61: 49 | GU61: 10121
A62: Argentina | B62: 1 | C62: 1930 | D62: 11896 | E62: 28.9 | F62: 11.6 | G62: 82 | H62: 100 | AI62: 127 | AJ62: 38 | AK62: 853 | AR62: 1305 | AS62: 1305 | AT62: 265 | AU62: 265 | AV62: 1433 | AW62: 1433 | AX62: 1680 | AY62: 1680 | BC62: 1396 | BD62: 1396 | BR62: 1092 | BS62: 1092 | BW62: 663 | BX62: 663 | CB62: 290 | CC62: 290 | CZ62: 27 | DA62: 27 | GG62: 87 | GH62: 0.0001356424331 | GI62: 133 | GJ62: 0.001619266572 | GK62: 1445 | GN62: 57 | GO62: 57 | GS62: 23 | GT62: 23 | GU62: 9858
A63: Argentina | B63: 1 | C63: 1931 | D63: 12016 | H63: 100 | AI63: 42 | AJ63: 8.4 | AK63: 58 | AR63: 1652 | AS63: 1652 | AT63: 330 | AU63: 330 | AV63: 1474 | AW63: 1474 | AX63: 1174 | AY63: 1174 | BC63: 1456 | BD63: 1456 | BR63: 908 | BS63: 908 | BW63: 686 | BX63: 686 | CB63: 257 | CC63: 257 | CZ63: 28 | DA63: 28 | GG63: 84 | GH63: 0.0001309651078 | GI63: 114 | GJ63: 0.001387942776 | GK63: 1524 | GN63: 55 | GO63: 55 | GS63: 25 | GT63: 25 | GU63: 7865
A64: Argentina | B64: 1 | C64: 1932 | D64: 12402 | H64: 95 | AI64: 122 | AJ64: 165 | AK64: 136 | AR64: 1875 | AS64: 1875 | AT64: 450 | AU64: 450 | AV64: 1550 | AW64: 1550 | AX64: 836 | AY64: 836 | BC64: 1288 | BD64: 1288 | BR64: 850 | BS64: 850 | BW64: 742 | BX64: 742 | CB64: 241 | CC64: 241 | CZ64: 81 | DA64: 81 | GG64: 85 | GH64: 0.0001325242162 | GI64: 102 | GJ64: 0.001241843537 | GK64: 1545 | GN64: 56 | GO64: 56 | GS64: 23 | GT64: 23 | GU64: 6759
A65: Argentina | B65: 1 | C65: 1933 | D65: 12623 | H65: 87 | AI65: 52 | AJ65: 3.3 | AK65: 40 | AR65: 1951 | AS65: 1951 | AT65: 605 | AU65: 605 | AV65: 1615 | AW65: 1615 | AX65: 897 | AY65: 897 | BC65: 1121 | BD65: 1121 | BR65: 880 | BS65: 880 | BW65: 754 | BX65: 754 | CB65: 257 | CC65: 257 | CZ65: 92 | DA65: 92 | GG65: 81 | GH65: 0.0001262877825 | GI65: 108 | GJ65: 0.001314893156 | GK65: 1644 | GP65: 7.2 | GQ65: 7.2 | GS65: 26 | GT65: 26 | GU65: 7517
A66: Argentina | B66: 1 | C66: 1934 | D66: 12834 | H66: 97 | AI66: 42 | AJ66: 26 | AK66: 742 | AR66: 1998 | AS66: 1998 | AT66: 732 | AU66: 732 | AV66: 1735 | AW66: 1735 | AX66: 1110 | AY66: 1110 | BC66: 1438 | BD66: 1438 | BR66: 934 | BS66: 934 | BW66: 764 | BX66: 764 | CB66: 248 | CC66: 248 | CZ66: 93 | DA66: 93 | GG66: 92 | GH66: 0.0001434379752 | GI66: 102 | GJ66: 0.001241843537 | GK66: 1703 | GL66: 60 | GP66: 7.8 | GQ66: 7.8 | GS66: 26 | GT66: 26 | GU66: 7794
A67: Argentina | B67: 1 | C67: 1935 | D67: 13044 | E67: 25.7 | F67: 11.6 | G67: 89 | H67: 106 | AI67: 69 | AJ67: 52 | AK67: 2643 | AN67: 38 | AO67: 38 | AP67: 28 | AQ67: 28 | AR67: 2037 | AS67: 2037 | AT67: 618 | AU67: 618 | AV67: 1861 | AW67: 1861 | AX67: 1175 | AY67: 1175 | BC67: 1569 | BD67: 1569 | BR67: 981 | BS67: 981 | BW67: 847 | BX67: 847 | CB67: 272 | CC67: 272 | CZ67: 117 | DA67: 117 | GG67: 92 | GH67: 0.0001434379752 | GI67: 108 | GJ67: 0.001314893156 | GK67: 1766 | GL67: 64 | GN67: 74 | GO67: 74 | GP67: 8.7 | GQ67: 8.7 | GS67: 27 | GT67: 27 | GU67: 9300 | GV67: 9.3 | GW67: 9300 | HB67: 0.8 | HC67: 0.8
A68: Argentina | B68: 1 | C68: 1936 | D68: 13620 | H68: 97 | AI68: 109 | AJ68: 85 | AK68: 1344 | AN68: 40 | AO68: 40 | AP68: 33 | AQ68: 33 | AR68: 2212 | AS68: 2212 | AT68: 534 | AU68: 534 | AV68: 2051 | AW68: 2051 | AX68: 1117 | AY68: 1117 | BC68: 1656 | BD68: 1656 | BR68: 1052 | BS68: 1052 | BW68: 873 | BX68: 873 | CB68: 261 | CC68: 261 | CZ68: 143 | DA68: 143 | GG68: 93 | GH68: 0.0001449970836 | GI68: 118 | GJ68: 0.001436642523 | GK68: 1799 | GL68: 69 | GN68: 76 | GO68: 76 | GP68: 9.7 | GQ68: 9.7 | GS68: 30 | GT68: 30 | GU68: 9800 | GV68: 9.8 | GW68: 9800 | HB68: 1 | HC68: 1
A69: Argentina | B69: 1 | C69: 1937 | D69: 13490 | H69: 95 | AI69: 82 | AJ69: 50 | AK69: 518 | AN69: 42 | AO69: 42 | AP69: 39 | AQ69: 39 | AR69: 2340 | AS69: 2340 | AT69: 505 | AU69: 505 | AV69: 2199 | AW69: 2199 | AX69: 1558 | AY69: 1558 | BC69: 2311 | BD69: 2311 | BR69: 1221 | BS69: 1221 | BW69: 991 | BX69: 991 | CB69: 285 | CC69: 285 | CZ69: 145 | DA69: 145 | GG69: 107 | GH69: 0.0001668246016 | GI69: 121 | GJ69: 0.001473167333 | GK69: 1867 | GL69: 78 | GN69: 77 | GO69: 77 | GP69: 10 | GQ69: 10 | GS69: 30 | GT69: 30 | GU69: 11300 | GV69: 11.3 | GW69: 11300 | HB69: 1.4 | HC69: 1.4
A70: Argentina | B70: 1 | C70: 1938 | D70: 13725 | H70: 103 | AI70: 44 | AJ70: 8.9 | AK70: 229 | AN70: 45 | AO70: 45 | AP70: 44 | AQ70: 44 | AR70: 2444 | AS70: 2444 | AT70: 491 | AU70: 491 | AV70: 2328 | AW70: 2328 | AX70: 1461 | AY70: 1461 | BC70: 1400 | BD70: 1400 | BR70: 1278 | BS70: 1278 | BW70: 991 | BX70: 991 | CB70: 329 | CC70: 329 | CZ70: 155 | DA70: 155 | GG70: 100 | GH70: 0.0001559108426 | GI70: 120 | GJ70: 0.001460992396 | GK70: 1916 | GL70: 84 | GP70: 11 | GQ70: 11 | GS70: 32 | GT70: 32 | GU70: 11000 | GV70: 11 | GW70: 11000 | HB70: 1.5 | HC70: 1.5
A71: Argentina | B71: 1 | C71: 1939 | D71: 13948 | H71: 90 | AI71: 49 | AJ71: 9.7 | AK71: 241 | AN71: 47 | AO71: 47 | AP71: 50 | AQ71: 50 | AR71: 2663 | AS71: 2663 | AT71: 519 | AU71: 519 | AV71: 2461 | AW71: 2461 | AX71: 1338 | AY71: 1338 | BC71: 1573 | BD71: 1573 | BR71: 1460 | BS71: 1460 | BW71: 1015 | BX71: 1015 | GG71: 102 | GH71: 0.0001590290595 | GI71: 102 | GJ71: 0.001490212244 | GK71: 1905 | GL71: 41 | GN71: 79 | GO71: 79 | GP71: 6.2 | GQ71: 6.2 | GS71: 34 | GT71: 34 | GU71: 11600 | GV71: 11.6 | GW71: 11600 | HB71: 1.4 | HC71: 1.4
A72: Argentina | B72: 1 | C72: 1940 | D72: 14169 | E72: 25.7 | F72: 10.4 | G72: 74 | H72: 90 | AI72: 53 | AJ72: 13 | AK72: 225 | AN72: 46 | AO72: 46 | AP72: 56 | AQ72: 56 | AR72: 2948 | AS72: 2948 | AT72: 536 | AU72: 536 | AV72: 2550 | AW72: 2550 | AX72: 1499 | AY72: 1499 | BC72: 1428 | BD72: 1428 | BR72: 1322 | BS72: 1322 | BW72: 969 | BX72: 969 | CB72: 239 | CC72: 239 | CZ72: 173 | DA72: 173 | GG72: 109 | GH72: 0.0001699428184 | GI72: 104 | GJ72: 0.001519432092 | GK72: 1930 | GL72: 42 | GP72: 6.2 | GQ72: 6.2 | GS72: 42 | GT72: 42 | GU72: 12000 | GV72: 12 | GW72: 12000 | HB72: 1.4 | HC72: 1.4
A73: Argentina | B73: 1 | C73: 1941 | D73: 14401 | H73: 85 | AI73: 54 | AJ73: 6.6 | AK73: 248 | AN73: 48 | AO73: 48 | AP73: 58 | AQ73: 58 | AR73: 3150 | AS73: 3150 | AT73: 593 | AU73: 593 | AV73: 2644 | AW73: 2644 | AX73: 1277 | AY73: 1277 | BC73: 1465 | BD73: 1465 | BR73: 1371 | BS73: 1371 | BW73: 914 | BX73: 914 | CB73: 189 | CC73: 189 | CZ73: 180 | DA73: 180 | GG73: 119 | GH73: 0.0001855339027 | GI73: 107 | GJ73: 0.001563261864 | GK73: 1946 | GL73: 43 | GP73: 6.6 | GQ73: 6.6 | GS73: 44 | GT73: 44 | GU73: 12900 | GV73: 12.9 | GW73: 12900 | HB73: 1.5 | HC73: 1.5
A74: Argentina | B74: 1 | C74: 1942 | D74: 14631 | H74: 86 | AI74: 113 | AJ74: 40 | AK74: 634 | AN74: 54 | AO74: 54 | AP74: 61 | AQ74: 61 | AR74: 3392 | AS74: 3392 | AT74: 676 | AU74: 676 | AV74: 2773 | AW74: 2773 | AX74: 1274 | AY74: 1274 | BC74: 1789 | BD74: 1789 | BR74: 1554 | BS74: 1554 | BW74: 1030 | BX74: 1030 | CB74: 168 | CC74: 168 | CZ74: 256 | DA74: 256 | GG74: 150 | GH74: 0.0002338662639 | GI74: 113 | GJ74: 0.001650921408 | GK74: 1928 | GL74: 47 | GN74: 80 | GO74: 80 | GP74: 7.4 | GQ74: 7.4 | GS74: 48 | GT74: 48 | GU74: 14600 | GV74: 14.6 | GW74: 14600 | HB74: 1.7 | HC74: 1.7
A75: Argentina | B75: 1 | C75: 1943 | D75: 14877 | H75: 80 | AI75: 85 | AJ75: 6.8 | AK75: 87 | AN75: 56 | AO75: 56 | AP75: 59 | AQ75: 59 | AR75: 3553 | AS75: 3553 | AT75: 677 | AU75: 677 | AV75: 2927 | AW75: 2927 | AX75: 942 | AY75: 942 | BC75: 2192 | BD75: 2192 | BR75: 1786 | BS75: 1786 | BW75: 1050 | BX75: 1050 | CB75: 108 | CC75: 108 | CZ75: 277 | DA75: 277 | GG75: 164 | GH75: 0.0002556937819 | GI75: 114 | GJ75: 0.001665531331 | GK75: 1936 | GL75: 50 | GP75: 8 | GQ75: 8 | GS75: 48 | GT75: 48 | GU75: 15300 | GV75: 15.3 | GW75: 15300 | HB75: 1.8 | HC75: 1.8
A76: Argentina | B76: 1 | C76: 1944 | D76: 15130 | H76: 81 | AI76: 27 | AJ76: 9.1 | AK76: 41 | AN76: 62 | AO76: 62 | AP76: 61 | AQ76: 61 | AR76: 3467 | AS76: 3467 | AT76: 662 | AU76: 662 | AV76: 3064 | AW76: 3064 | AX76: 1007 | AY76: 1007 | BC76: 2360 | BD76: 2360 | BR76: 2491 | BS76: 2491 | BW76: 1484 | BX76: 1484 | CB76: 96 | CC76: 96 | CZ76: 471 | DA76: 471 | GG76: 178 | GH76: 0.0002775212998 | GI76: 114 | GJ76: 0.001665531331 | GK76: 1957 | GL76: 53 | GP76: 8.3 | GQ76: 8.3 | GS76: 52 | GT76: 52 | GU76: 17500 | GV76: 17.5 | GW76: 17500 | HB76: 2.2 | HC76: 2.2
A77: Argentina | B77: 1 | C77: 1945 | D77: 15390 | E77: 25.2 | F77: 9.6 | G77: 74 | H77: 82 | AI77: 47 | AJ77: 44 | AK77: 509 | AN77: 59 | AO77: 59 | AP77: 58 | AQ77: 58 | AR77: 3274 | AS77: 3274 | AT77: 609 | AU77: 609 | AV77: 2976 | AW77: 2976 | AX77: 1154 | AY77: 1154 | BC77: 2498 | BD77: 2498 | BR77: 2815 | BS77: 2815 | BW77: 1547 | BX77: 1547 | BZ77: 0.08015544041 | CB77: 113 | CC77: 113 | CE77: 0.00585492228 | CZ77: 483 | DA77: 483 | DC77: 0.02502590674 | GG77: 194 | GH77: 0.0003024670346 | GI77: 136 | GJ77: 0.001986949659 | GK77: 1977 | GL77: 55 | GN77: 80 | GO77: 80 | GP77: 8.9 | GQ77: 8.9 | GS77: 53 | GT77: 53 | GU77: 19300 | GV77: 19.3 | GW77: 19300 | HB77: 2.6 | HC77: 2.6
A78: Argentina | B78: 1 | C78: 1946 | D78: 15654 | H78: 74 | AI78: 142 | AJ78: 334 | AK78: 2048 | AN78: 64 | AO78: 64 | AP78: 53 | AQ78: 53 | AR78: 2976 | AS78: 2976 | AT78: 566 | AU78: 566 | AV78: 3263 | AW78: 3263 | AX78: 2332 | AY78: 2332 | BC78: 3973 | BD78: 3973 | BR78: 3321 | BS78: 3321 | BW78: 1972 | BX78: 1972 | BZ78: 0.07526717557 | CB78: 248 | CC78: 248 | CE78: 0.009465648855 | CZ78: 619 | DA78: 619 | DC78: 0.0236259542 | GG78: 224 | GH78: 0.0003492402874 | GI78: 161 | GJ78: 0.002352197758 | GK78: 1993 | GL78: 60 | GP78: 9.6 | GQ78: 9.6 | GS78: 57 | GT78: 57 | GU78: 26200 | GV78: 26.2 | GW78: 26200 | HB78: 3.9 | HC78: 3.9
A79: Argentina | B79: 1 | C79: 1947 | D79: 15929 | H79: 78 | I79: 1534 | J79: 32 | K79: 1053 | L79: 334 | M79: 748 | N79: 375 | O79: 779 | P79: 179 | Q79: 88 | R79: 1 | S79: 404 | T79: 4 | U79: 107 | V79: 12 | W79: 596 | X79: 22 | AI79: 64 | AJ79: 54 | AK79: 3467 | AN79: 74 | AO79: 74 | AP79: 56 | AQ79: 56 | AR79: 3126 | AS79: 3126 | AT79: 583 | AU79: 583 | AV79: 3576 | AW79: 3576 | AX79: 5349 | AY79: 5349 | BC79: 5505 | BD79: 5505 | BR79: 4220 | BS79: 4220 | BW79: 3502 | BX79: 3502 | BZ79: 0.09754874652 | CB79: 519 | CC79: 519 | CE79: 0.01445682451 | CZ79: 1085 | DA79: 1085 | DC79: 0.03022284123 | GG79: 232 | GH79: 0.0003617131548 | GI79: 182 | GJ79: 0.002659006161 | GK79: 2036 | GL79: 60 | GP79: 10 | GQ79: 10 | GS79: 56 | GT79: 56 | GU79: 35900 | GV79: 35.9 | GW79: 35900 | HB79: 6.9 | HC79: 6.9
A80: Argentina | B80: 1 | C80: 1948 | D80: 16284 | H80: 69 | AI80: 103 | AJ80: 278 | AK80: 3159 | AN80: 72 | AO80: 72 | AP80: 56 | AQ80: 56 | AR80: 3323 | AS80: 3323 | AT80: 606 | AU80: 606 | AV80: 4034 | AW80: 4034 | AX80: 6190 | AY80: 6190 | BC80: 5542 | BD80: 5542 | BH80: 16.9 | BI80: 16900 | BK80: 0.3858447489 | BM80: 24.2 | BN80: 24200 | BP80: 0.5525114155 | BR80: 7076 | BS80: 7076 | BW80: 4327 | BX80: 4327 | BZ80: 0.09878995434 | CB80: 471 | CC80: 471 | CE80: 0.01075342466 | CZ80: 1443 | DA80: 1443 | DC80: 0.03294520548 | GG80: 268 | GH80: 0.0004178410582 | GI80: 207 | GJ80: 0.00302425426 | GK80: 2074 | GL80: 62 | GP80: 11 | GQ80: 11 | GS80: 62 | GT80: 62 | GU80: 43800 | GV80: 43.8 | GW80: 43800 | HB80: 10.3 | HC80: 10.3
A81: Argentina | B81: 1 | C81: 1949 | D81: 16671 | H81: 67 | AI81: 36 | AJ81: 29 | AK81: 510 | AN81: 67 | AO81: 67 | AP81: 58 | AQ81: 58 | AR81: 3232 | AS81: 3232 | AT81: 664 | AU81: 664 | AV81: 4121 | AW81: 4121 | AX81: 1180 | AY81: 1180 | BC81: 1044 | BD81: 1044 | BH81: 20.4 | BI81: 20400 | BK81: 0.3878326996 | BM81: 30.1 | BN81: 30100 | BP81: 0.572243346 | BR81: 7783 | BS81: 7783 | BW81: 5159 | BX81: 5159 | BZ81: 0.09807984791 | CB81: 279 | CC81: 279 | CE81: 0.00530418251 | CZ81: 1630 | DA81: 1630 | DC81: 0.03098859316 | GG81: 330 | GH81: 0.0005145057806 | GI81: 266 | GJ81: 0.003886239773 | GK81: 2120 | GL81: 66 | GN81: 93 | GO81: 93 | GP81: 12 | GQ81: 12 | GS81: 69 | GT81: 69 | GU81: 52600 | GV81: 52.6 | GW81: 52600 | HB81: 11.9 | HC81: 11.9
A82: Argentina | B82: 1 | C82: 1950 | D82: 17150 | H82: 68 | AI82: 30 | AJ82: 97 | AK82: 2032 | AN82: 68 | AO82: 68 | AP82: 58 | AQ82: 58 | AR82: 3357 | AS82: 3357 | AT82: 755 | AU82: 755 | AV82: 4430 | AW82: 4430 | AX82: 964 | AY82: 964 | BC82: 1178 | BD82: 1178 | BH82: 24.7 | BI82: 24700 | BK82: 0.3971061093 | BM82: 35.4 | BN82: 35400 | BP82: 0.5691318328 | BR82: 8.7 | BS82: 8700 | BW82: 6096 | BX82: 6096 | BZ82: 0.09800643087 | CB82: 291 | CC82: 291 | CE82: 0.004678456592 | CZ82: 2238 | DA82: 2238 | DC82: 0.0359807074 | GG82: 397 | GH82: 0.0006189660451 | GI82: 354 | GJ82: 0.005171913082 | GK82: 2212 | GL82: 67 | GN82: 93 | GO82: 93 | GP82: 12 | GQ82: 12 | GS82: 85 | GT82: 85 | GU82: 68000 | GV82: 62.2 | GW82: 62200 | HB82: 14 | HC82: 14
A83: Argentina | B83: 1 | C83: 1951 | D83: 17468 | H83: 67 | AI83: 23 | AJ83: 16 | AK83: 152 | AN83: 70 | AO83: 70 | AP83: 67 | AQ83: 67 | AR83: 3501 | AS83: 3501 | AT83: 830 | AU83: 830 | AV83: 5468 | AW83: 5468 | AX83: 1480 | AY83: 1480 | BC83: 1169 | BD83: 1169 | BH83: 30.4 | BI83: 30400 | BK83: 0.3166666667 | BM83: 41.7 | BN83: 41700 | BP83: 0.434375 | BR83: 13.4 | BS83: 13400 | BW83: 9465 | BX83: 9465 | BZ83: 0.09859375 | CB83: 691 | CC83: 691 | CE83: 0.007197916667 | CZ83: 3170 | DA83: 3170 | DC83: 0.03302083333 | GG83: 592 | GH83: 0.0009229921882 | GI83: 472 | GJ83: 0.006895884109 | GK83: 2286 | GL83: 70 | GN83: 102 | GO83: 102 | GP83: 12 | GQ83: 12 | GS83: 95 | GT83: 95 | GU83: 96000 | GV83: 96 | GW83: 96000 | HB83: 19 | HC83: 19
A84: Argentina | B84: 1 | C84: 1952 | D84: 17824 | H84: 65 | AI84: 14 | AJ84: 16 | AK84: 313 | AN84: 68 | AO84: 68 | AP84: 72 | AQ84: 72 | AR84: 3552 | AS84: 3552 | AT84: 898 | AU84: 898 | AV84: 5551 | AW84: 5551 | AX84: 1179 | AY84: 1179 | BC84: 688 | BD84: 688 | BH84: 34.3 | BI84: 34300 | BK84: 0.30625 | BM84: 46.7 | BN84: 46700 | BP84: 0.4169642857 | BR84: 15.4 | BS84: 15400 | BW84: 11492 | BX84: 11492 | BZ84: 0.1026071429 | CB84: 457 | CC84: 457 | CE84: 0.004080357143 | CZ84: 4074 | DA84: 4074 | DC84: 0.036375 | GG84: 776 | GH84: 0.001209868139 | GI84: 667 | GJ84: 0.009744819281 | GK84: 2376 | GL84: 74 | GP84: 13 | GQ84: 13 | GS84: 103 | GT84: 103 | GU84: 112000 | GV84: 112 | GW84: 112000 | HB84: 21 | HC84: 21
A85: Argentina | B85: 1 | C85: 1953 | D85: 18194 | H85: 63 | AI85: 40 | AJ85: 5.5 | AK85: 59 | AN85: 68 | AO85: 68 | AP85: 77 | AQ85: 77 | AR85: 4078 | AS85: 4078 | AT85: 698 | AU85: 698 | AV85: 5963 | AW85: 5963 | AX85: 795 | AY85: 795 | BC85: 1125 | BD85: 1125 | BH85: 43.1 | BI85: 43100 | BK85: 0.3341085271 | BM85: 58 | BN85: 58000 | BP85: 0.4496124031 | BR85: 16.4 | BS85: 16400 | BW85: 11781 | BX85: 11781 | BZ85: 0.0913255814 | CB85: 264 | CC85: 264 | CE85: 0.002046511628 | CZ85: 4131 | DA85: 4131 | DC85: 0.03202325581 | GG85: 867 | GH85: 0.001351747005 | GI85: 694 | GJ85: 0.01013928723 | GK85: 2473 | GL85: 85 | GP85: 14 | GQ85: 14 | GS85: 128 | GT85: 128 | GU85: 129000 | GV85: 129 | GW85: 129000 | HB85: 23 | HC85: 23
A86: Argentina | B86: 1 | C86: 1954 | D86: 18564 | H86: 60 | AI86: 18 | AJ86: 120 | AK86: 1449 | AN86: 73 | AO86: 73 | AP86: 81 | AQ86: 81 | AR86: 4231 | AS86: 4231 | AT86: 707 | AU86: 707 | AV86: 6466 | AW86: 6466 | AX86: 979 | AY86: 979 | BC86: 1027 | BD86: 1027 | BH86: 51.9 | BI86: 51900 | BK86: 0.3579310345 | BM86: 69.6 | BN86: 69600 | BP86: 0.48 | BR86: 18.1 | BS86: 18100 | BW86: 12782 | BX86: 12782 | BZ86: 0.08815172414 | CB86: 388 | CC86: 388 | CE86: 0.002675862069 | CZ86: 4414 | DA86: 4414 | DC86: 0.03044137931 | GG86: 894 | GH86: 0.001393842933 | GI86: 722 | GJ86: 0.0105483651 | GK86: 2565 | GL86: 91 | GN86: 110 | GO86: 110 | GP86: 15 | GQ86: 15 | GS86: 145 | GT86: 145 | GU86: 145000 | GV86: 145 | GW86: 145000 | HB86: 24 | HC86: 24
A87: Argentina | B87: 1 | C87: 1955 | D87: 18928 | H87: 62 | AI87: 21 | AJ87: 12 | AK87: 144 | AN87: 81 | AO87: 81 | AP87: 84 | AQ87: 84 | AR87: 4365 | AS87: 4365 | AT87: 719 | AU87: 719 | AV87: 7035 | AW87: 7035 | AX87: 1173 | AY87: 1173 | BC87: 929 | BD87: 929 | BH87: 61.2 | BI87: 61200 | BK87: 0.3578947368 | BM87: 81.4 | BN87: 81400 | BP87: 0.4760233918 | BR87: 20 | BS87: 20000 | BW87: 12.6 | BX87: 12600 | BZ87: 0.07368421053 | CB87: 0.53 | CC87: 530 | CE87: 0.003099415205 | CZ87: 4.68 | DA87: 4680 | DC87: 0.02736842105 | GG87: 974 | GH87: 0.001518571607 | GI87: 806 | GJ87: 0.01177559871 | GK87: 2642 | GL87: 102 | GN87: 114 | GO87: 114 | GP87: 15 | GQ87: 15 | GS87: 152 | GT87: 152 | GU87: 171000 | GV87: 171 | GW87: 171000 | HB87: 30 | HC87: 30
A88: Argentina | B88: 1 | C88: 1956 | D88: 19281 | H88: 57 | AI88: 50 | AJ88: 854 | AK88: 5167 | AN88: 85 | AO88: 85 | AP88: 88 | AQ88: 88 | AR88: 4437 | AS88: 4437 | AT88: 764 | AU88: 764 | AV88: 7665 | AW88: 7665 | AX88: 1128 | AY88: 1128 | BC88: 944 | BD88: 944 | BH88: 71.3 | BI88: 71300 | BK88: 0.3270642202 | BM88: 96.4 | BN88: 96400 | BP88: 0.4422018349 | BR88: 26 | BS88: 26000 | BW88: 16 | BX88: 16000 | BZ88: 0.07339449541 | CB88: 0.88 | CC88: 880 | CE88: 0.004036697248 | CZ88: 5.44 | DA88: 5440 | DC88: 0.02495412844 | GG88: 1227 | GH88: 0.001913026039 | GI88: 917 | GJ88: 0.01339730027 | GK88: 2724 | GL88: 113 | GN88: 120 | GO88: 120 | GP88: 16 | GQ88: 16 | GS88: 149 | GT88: 149 | GU88: 218000 | GV88: 218 | GW88: 218000 | HB88: 40 | HC88: 40
A89: Argentina | B89: 1 | C89: 1957 | D89: 19625 | H89: 68 | AI89: 56 | AJ89: 304 | AK89: 3391 | AN89: 91 | AO89: 91 | AP89: 92 | AQ89: 92 | AR89: 4858 | AS89: 4858 | AT89: 852 | AU89: 852 | AV89: 8191 | AW89: 8191 | AX89: 1310 | AY89: 1310 | BC89: 975 | BD89: 975 | BH89: 82.8 | BI89: 82800 | BK89: 0.3055350554 | BM89: 113 | BN89: 113000 | BP89: 0.4169741697 | BR89: 28 | BS89: 28000 | BW89: 18.6 | BX89: 18600 | BZ89: 0.06863468635 | CB89: 14 | CC89: 14000 | CE89: 0.05166051661 | CZ89: 6.24 | DA89: 6240 | DC89: 0.02302583026 | GG89: 1523 | GH89: 0.002374522133 | GI89: 1139 | GJ89: 0.01664070339 | GK89: 2783 | GL89: 125 | GP89: 19 | GQ89: 19 | GS89: 159 | GT89: 159 | GU89: 271000 | GV89: 271 | GW89: 271000 | HB89: 54 | HC89: 54
A90: Argentina | B90: 1 | C90: 1958 | D90: 19961 | H90: 61 | AI90: 84 | AJ90: 277 | AK90: 6245 | AN90: 100 | AO90: 100 | AP90: 100 | AQ90: 100 | AR90: 5102 | AS90: 5102 | AT90: 866 | AU90: 866 | AV90: 9418 | AW90: 9418 | AX90: 1233 | AY90: 1233 | BC90: 994 | BD90: 994 | BH90: 119 | BI90: 119000 | BK90: 0.3074935401 | BM90: 160 | BN90: 160000 | BP90: 0.4134366925 | BR90: 67 | BS90: 67000 | BW90: 36.6 | BX90: 36600 | BZ90: 0.09457364341 | CB90: 1.37 | CC90: 1370 | CE90: 0.00354005168 | CZ90: 8.99 | DA90: 8990 | DC90: 0.02322997416 | GG90: 1995 | GH90: 0.00311042131 | GI90: 1500 | GJ90: 0.02191488594 | GK90: 2860 | GN90: 126 | GO90: 126 | GS90: 153 | GT90: 153 | GU90: 387000 | GV90: 387 | GW90: 387000 | HB90: 77 | HC90: 77
A91: Argentina | B91: 1 | C91: 1959 | D91: 20289 | H91: 59 | AI91: 45 | AJ91: 1411 | AK91: 10078 | AN91: 92 | AO91: 92 | AP91: 114 | AQ91: 114 | AR91: 6206 | AS91: 6206 | AT91: 861 | AU91: 861 | AV91: 9544 | AW91: 9544 | AX91: 993 | AY91: 993 | BC91: 1009 | BD91: 1009 | BH91: 170 | BI91: 170000 | BK91: 0.2294197031 | BM91: 215 | BN91: 215000 | BP91: 0.290148448 | BR91: 109 | BS91: 109000 | BW91: 66.5 | BX91: 66500 | BZ91: 0.08974358974 | CB91: 20.5 | CC91: 20500 | CE91: 0.02766531714 | CZ91: 12.6 | DA91: 12600 | DC91: 0.01700404858 | GG91: 4665 | GH91: 0.007273240807 | GI91: 3167 | GJ91: 0.04626962918 | GK91: 2821 | GL91: 140 | GN91: 125 | GO91: 125 | GP91: 21 | GQ91: 21 | GS91: 167 | GT91: 167 | GU91: 741000 | GV91: 741 | GW91: 741000 | HB91: 126 | HC91: 126
A92: Argentina | B92: 1 | C92: 1960 | D92: 20611 | H92: 62 | I92: 1345 | J92: 42 | K92: 1577 | L92: 416 | M92: 734 | N92: 450 | O92: 719 | P92: 601 | Q92: 116 | R92: 2 | S92: 424 | T92: 7 | U92: 171 | V92: 28 | W92: 800 | X92: 168 | AI92: 26 | AJ92: 130 | AK92: 1662 | AN92: 101 | AO92: 101 | AP92: 156 | AQ92: 156 | AR92: 8898 | AS92: 8898 | AT92: 1383 | AU92: 1383 | AV92: 10459 | AW92: 10459 | AX92: 1249 | AY92: 1249 | BC92: 1079 | BD92: 1079 | BH92: 218 | BI92: 218000 | BK92: 0.2166998012 | BM92: 279 | BN92: 279000 | BP92: 0.2773359841 | BR92: 126 | BS92: 126000 | BW92: 103 | BX92: 103000 | BZ92: 0.1023856859 | CB92: 29 | CC92: 29000 | CE92: 0.02882703777 | CZ92: 21 | DA92: 21000 | DC92: 0.02087475149 | GG92: 5402 | GH92: 0.008422303717 | GI92: 128 | GJ92: 0.05922512535 | GK92: 2849 | GL92: 147 | GN92: 130 | GO92: 130 | GP92: 23 | GQ92: 23 | GS92: 181 | GT92: 181 | GU92: 1006000 | GV92: 1006 | GW92: 1006000 | HB92: 208 | HC92: 208
A93: Argentina | B93: 1 | C93: 1961 | D93: 20930 | H93: 59 | AI93: 43 | AJ93: 236 | AK93: 1755 | AN93: 111 | AO93: 111 | AP93: 203 | AQ93: 203 | AR93: 11752 | AS93: 11752 | AT93: 2357 | AU93: 2357 | AV93: 11547 | AW93: 11547 | AX93: 1460 | AY93: 1460 | BC93: 964 | BD93: 964 | BH93: 243 | BI93: 243000 | BK93: 0.2025 | BM93: 318 | BN93: 318000 | BP93: 0.265 | BR93: 165 | BS93: 165000 | BW93: 145 | BX93: 145000 | BZ93: 0.1208333333 | CB93: 38 | CC93: 38000 | CE93: 0.03166666667 | CZ93: 27 | DA93: 27000 | DC93: 0.0225 | GG93: 5831 | GH93: 0.009091161232 | GI93: 146 | GJ93: 0.06755365861 | GK93: 2871 | GL93: 150 | GN93: 132 | GO93: 132 | GP93: 24 | GQ93: 24 | GS93: 190 | GT93: 190 | GU93: 1200000 | GV93: 1200 | GW93: 1200000 | HB93: 268 | HC93: 268
A94: Argentina | B94: 1 | C94: 1962 | D94: 21245 | H94: 59 | AI94: 15 | AJ94: 42 | AK94: 269 | AN94: 106 | AO94: 106 | AP94: 228 | AQ94: 228 | AR94: 13661 | AS94: 13661 | AT94: 2978 | AU94: 2978 | AV94: 11887 | AW94: 11887 | AX94: 1357 | AY94: 1357 | BC94: 1216 | BD94: 1216 | BH94: 220 | BI94: 220000 | BK94: 0.1481481481 | BM94: 305 | BN94: 305000 | BP94: 0.2053872054 | BR94: 197 | BS94: 197000 | BW94: 143 | BX94: 143000 | BZ94: 0.0962962963 | CB94: 32 | CC94: 32000 | CE94: 0.02154882155 | CZ94: 21 | DA94: 21000 | DC94: 0.01414141414 | GG94: 7611 | GH94: 0.01186637423 | GI94: 187 | GJ94: 0.08652420657 | GK94: 2933 | GL94: 156 | GN94: 124 | GO94: 124 | GP94: 26 | GQ94: 26 | GS94: 193 | GT94: 193 | GU94: 1485000 | GV94: 1485 | GW94: 1485000 | HB94: 318 | HC94: 318
A95: Argentina | B95: 1 | C95: 1963 | D95: 21558 | H95: 62 | AI95: 20 | AJ95: 207 | AK95: 812 | AN95: 101 | AO95: 101 | AP95: 228 | AQ95: 228 | AR95: 13514 | AS95: 13514 | AT95: 3406 | AU95: 3406 | AV95: 12449 | AW95: 12449 | AX95: 981 | AY95: 981 | BC95: 1365 | BD95: 1365 | BH95: 283 | BI95: 283000 | BK95: 0.1525606469 | BM95: 406 | BN95: 406000 | BP95: 0.2188679245 | BR95: 226 | BS95: 226000 | BW95: 163 | BX95: 163 | CB95: 29 | CC95: 29000 | CZ95: 26 | DA95: 26000 | DC95: 0.01401617251 | GG95: 9821 | GH95: 0.01531200385 | GI95: 231 | GJ95: 0.1068828434 | GK95: 2990 | GL95: 164 | GN95: 128 | GO95: 128 | GP95: 27 | GQ95: 27 | GS95: 217 | GT95: 217 | GU95: 1855000 | GV95: 1855 | GW95: 1855000 | HB95: 328 | HC95: 328
A96: Argentina | B96: 1 | C96: 1964 | D96: 21868 | H96: 59 | AG96: 178 | AH96: 5.7 | AI96: 27 | AJ96: 144 | AK96: 636 | AN96: 116 | AO96: 116 | AP96: 236 | AQ96: 236 | AR96: 13961 | AS96: 13961 | AT96: 3751 | AU96: 3751 | AV96: 13928 | AW96: 13928 | AX96: 1077 | AY96: 1077 | BC96: 1410 | BD96: 1410 | BH96: 396 | BI96: 396000 | BK96: 0.1534883721 | BM96: 574 | BN96: 574000 | BP96: 0.2224806202 | BR96: 349 | BS96: 349000 | BW96: 229 | BX96: 229 | CB96: 47 | CC96: 47000 | CZ96: 29 | DA96: 29000 | DC96: 0.01124031008 | GG96: 12399 | GH96: 0.01933138537 | GI96: 282 | GJ96: 0.1304803543 | GK96: 3074 | GL96: 171 | GN96: 152 | GO96: 152 | GP96: 27 | GQ96: 27 | GS96: 254 | GT96: 254 | GU96: 2580000 | GV96: 2580 | GW96: 2580000 | HB96: 424 | HC96: 424
A97: Argentina | B97: 1 | C97: 1965 | D97: 22179 | H97: 57 | AG97: 167 | AH97: 5.3 | AI97: 32 | AJ97: 204 | AK97: 591 | AN97: 136 | AO97: 136 | AP97: 245 | AQ97: 245 | AR97: 13672 | AS97: 13672 | AT97: 4222 | AU97: 4222 | AV97: 15383 | AW97: 15383 | AX97: 1199 | AY97: 1199 | BC97: 1493 | BD97: 1493 | BH97: 497 | BI97: 497000 | BK97: 0.01372928177 | BM97: 729 | BN97: 729000 | BP97: 0.02013812155 | BR97: 395 | BS97: 395000 | BW97: 322 | BX97: 322 | CB97: 64 | CC97: 64000 | CZ97: 51 | DA97: 51000 | DC97: 0.001408839779 | GG97: 124 | GH97: 0.02397091786 | GI97: 362 | GJ97: 0.1674960576 | GK97: 3125 | GL97: 179 | GN97: 154 | GO97: 154 | GP97: 29 | GQ97: 29 | GS97: 247 | GT97: 247 | GU97: 3620000 | GV97: 36.2 | GW97: 36200000 | HB97: 6.2 | HC97: 6200
A98: Argentina | B98: 1 | C98: 1966 | D98: 22488 | H98: 57 | AG98: 173 | AH98: 5.6 | AI98: 27 | AJ98: 236 | AK98: 1004 | AN98: 137 | AO98: 137 | AP98: 259 | AQ98: 259 | AR98: 14559 | AS98: 14559 | AT98: 4577 | AU98: =AT98/1000000 -> 0.004577 | AV98: 15927 | AW98: 15927 | AX98: 1124 | AY98: 1124 | BC98: 1593 | BD98: 1593 | BH98: 671 | BI98: 671000 | BK98: 0.01484513274 | BM98: 959 | BN98: 959000 | BP98: 0.02121681416 | BR98: 598 | BS98: 598000 | BW98: 421 | BX98: 421 | CB98: 71 | CC98: 71000 | CZ98: 72 | DA98: 72000 | DC98: 0.001592920354 | GG98: 149 | GH98: 0.02880376421 | GI98: 477 | GJ98: 0.2207061312 | GK98: 3192 | GL98: 183 | GN98: 158 | GO98: 158 | GP98: 28 | GQ98: 28 | GS98: 226 | GT98: 226 | GU98: 4520000 | GV98: 45.2 | GW98: 45200000 | HB98: 7.9 | HC98: 7900
A99: Argentina | B99: 1 | C99: 1967 | D99: 22800 | H99: 56 | AG99: 199 | AH99: 6.4 | AI99: 6 | AJ99: 0.5 | AK99: 2.7 | AN99: 139 | AO99: 139 | AP99: 291 | AQ99: 291 | AR99: 15953 | AS99: 15953 | AT99: 167 | AU99: =AT99/1000000 -> 0.000167 | AV99: 16687 | AW99: 16687 | AX99: 1096 | AY99: 1096 | BC99: 1465 | BD99: 1465 | BH99: 1092 | BI99: 1092000 | BK99: 0.01847715736 | BM99: 1475 | BN99: 1,475,000 | BP99: 0 | BR99: 551 | BS99: 551000 | BW99: 476 | BX99: 476 | CB99: 136 | CC99: 136000 | CZ99: 138 | DA99: 138000 | DC99: 0.002335025381 | GG99: 186 | GH99: 0.0359563768 | GI99: 618 | GJ99: 0.2859463083 | GK99: 3207 | GL99: 190 | GN99: 159 | GO99: 159 | GP99: 29 | GQ99: 29 | GS99: 240 | GT99: 240 | GU99: 5910000 | GV99: 59.1 | GW99: 59100000 | HB99: 10.7 | HC99: 10700
A100: Argentina | B100: 1 | C100: 1968 | D100: 23113 | H100: 55 | AG100: 153 | AH100: 5 | AI100: 7 | AJ100: 1.6 | AK100: 16 | AN100: 148 | AO100: 148 | AP100: 326 | AQ100: 326 | AR100: 17525 | AS100: 17525 | AT100: 186 | AU100: 0.000186 | AV100: 17952 | AW100: 17952 | AX100: 1169 | AY100: 1169 | BC100: 1368 | BD100: 1368 | BH100: 1364 | BI100: 1364000 | BK100: 0.0198255814 | BM100: 1889 | BN100: 1,889,000 | BP100: 0 | BR100: 577 | BS100: 577000 | BW100: 505 | BX100: 505 | CB100: 121 | CC100: 121000 | CZ100: 124 | DA100: 124000 | DC100: 0.001802325581 | GG100: 204 | GH100: 0.03943602616 | GI100: 718 | GJ100: 0.3322159375 | GK100: 3239 | GL100: 198 | GN100: 165 | GO100: 165 | GP100: 30 | GQ100: 30 | GS100: 234 | GT100: 234 | GU100: 6880000 | GV100: 68.8 | GW100: 68800000 | HB100: 13 | HC100: 13000
A101: Argentina | B101: 1 | C101: 1969 | D101: 23428 | H101: 53 | AG101: 140 | AH101: 4.3 | AI101: 8 | AJ101: 6.7 | AK101: 150 | AN101: 164 | AO101: 164 | AP101: 360 | AQ101: 360 | AR101: 18166 | AS101: 18166 | AT101: 185 | AU101: 0.000185 | AV101: 20014 | AW101: 20014 | AX101: 1576 | AY101: 1576 | BC101: 1612 | BD101: 1612 | BH101: 1655 | BI101: 1655000 | BK101: 0.02058457711 | BM101: 2279 | BN101: 2,279,000 | BP101: 0 | BR101: 660 | BS101: 660000 | BW101: 572 | BX101: 572 | CB101: 140 | CC101: 140000 | CZ101: 143 | DA101: 143000 | DC101: 0.001778606965 | GG101: 217 | GH101: 0.04194910626 | GI101: 773 | GJ101: 0.3576642336 | GK101: 3355 | GL101: 212 | GN101: 172 | GO101: 172 | GP101: 32 | GQ101: 32 | GS101: 238 | GT101: 238 | GU101: 8040000 | GV101: 80.4 | GW101: 80400000 | HB101: 15.7 | HC101: 15700
A102: Argentina | B102: 1 | C102: 1970 | D102: 23748 | H102: 52 | I102: 1243 | J102: 43 | K102: 1448 | L102: 699 | M102: 1192 | N102: 541 | O102: 974 | P102: 582 | Q102: 88 | R102: 2 | S102: 420 | T102: 12 | U102: 385 | V102: 52 | W102: 1125 | X102: 205 | AG102: 158 | AH102: 4.8 | AI102: 5 | AJ102: 2.9 | AK102: 33 | AN102: 174 | AO102: 174 | AP102: 383 | AQ102: 383 | AR102: 20026 | AS102: 20026 | AT102: 209 | AU102: 0.000209 | AV102: 21727 | AW102: 21727 | AX102: 1694 | AY102: 1694 | BC102: 1773 | BD102: 1773 | BH102: 18 | BI102: 18000 | BK102: 0.1894736842 | BM102: 26 | BN102: 26000 | BP102: 0.2736842105 | BR102: 7.6 | BS102: 7600 | BW102: 6.8 | BX102: 6800 | BZ102: 0.07157894737 | CB102: 1.7 | CC102: 1700 | CE102: 0.01789473684 | CZ102: 1.8 | DA102: 1800 | DC102: 0.01894736842 | GG102: 248 | GH102: 0.04794183573 | GI102: 107 | GJ102: 0.3827007299 | GK102: 3386 | GL102: 405 | GN102: 176 | GO102: 176 | GP102: 58 | GQ102: 58 | GS102: 253 | GT102: 253 | GU102: 95000 | GV102: 95 | GW102: 95000 | HB102: 19 | HC102: 19
A103: Argentina | B103: 1 | C103: 1971 | D103: 24068 | H103: 50 | AG103: 196 | AH103: 6 | AI103: 16 | AJ103: 69 | AK103: 159 | AN103: 186 | AO103: 186 | AP103: 399 | AQ103: 399 | AR103: 21578 | AS103: 21578 | AT103: 224 | AU103: 0.000224 | AV103: 23624 | AW103: 23624 | AX103: 1868 | AY103: 1868 | BC103: 1740 | BD103: 1740 | BH103: 20 | BI103: 20000 | BK103: 0.1503759398 | BM103: 30 | BN103: 30000 | BP103: 0.2255639098 | BR103: 11.6 | BS103: 11600 | BW103: 8.6 | BX103: 8600 | BZ103: 0.06466165414 | CB103: 2.2 | CC103: 2200 | CE103: 0.01654135338 | CZ103: 2 | DA103: 2000 | DC103: 0.01503759398 | GG103: 345 | GH103: 0.06669327954 | GI103: 109 | GJ103: 0.3898540146 | GK103: 3444 | GL103: 405 | GN103: 181 | GO103: 181 | GP103: 58 | GQ103: 58 | GS103: 290 | GT103: 290 | GU103: 133000 | GV103: 133 | GW103: 133000 | HB103: 26 | HC103: 26
A104: Argentina | B104: 1 | C104: 1972 | D104: 24392 | H104: 49 | AG104: 221 | AH104: 6.6 | AI104: 12 | AJ104: 61 | AK104: 153 | AN104: 196 | AO104: 196 | AP104: 406 | AQ104: 406 | AR104: 22130 | AS104: 22130 | AT104: 219 | AU104: 0.000219 | AV104: 25306 | AW104: 25306 | AX104: 1905 | AY104: 1905 | BC104: 1941 | BD104: 1941 | BH104: 33 | BI104: 33000 | BK104: 0.15 | BM104: 53 | BN104: 53000 | BP104: 0.2409090909 | BR104: 18.4 | BS104: 18400 | BW104: 14 | BX104: 14000 | BZ104: 0.06363636364 | CB104: 4.8 | CC104: 4800 | CE104: 0.02181818182 | CZ104: 2.8 | DA104: 2800 | DC104: 0.01272727273 | GG104: 610 | GH104: 0.1179214508 | GI104: 113 | GJ104: 0.4041605839 | GK104: 3464 | GL104: 413 | GN104: 185 | GO104: 185 | GP104: 59 | GQ104: 59 | GS104: 333 | GT104: 333 | GU104: 220000 | GV104: 220 | GW104: 220000 | HB104: 44 | HC104: 44
A105: Argentina | B105: 1 | C105: 1973 | D105: 24820 | H105: 47 | AG105: 173 | AH105: 5.6 | AN105: 203 | AO105: 203 | AP105: 395 | AQ105: 395 | AR105: 21476 | AS105: 21476 | AT105: 234 | AU105: 0.000234 | AV105: 26660 | AW105: 26660 | AX105: 2230 | AY105: 2230 | BC105: 3266 | BD105: 3266 | BH105: 57 | BI105: 57000 | BK105: 0.1561643836 | BM105: 97 | BN105: 97000 | BP105: 0.2657534247 | BR105: 38.7 | BS105: 38700 | BW105: 19 | BX105: 19000 | BZ105: 0.05205479452 | CB105: 7.3 | CC105: 7300 | CE105: 0.02 | CZ105: 3.8 | DA105: 3800 | DC105: 0.0104109589 | GG105: 917 | GH105: 0.1772688039 | GI105: 120 | GJ105: 0.4291970803 | GK105: 3485 | GL105: 424 | GN105: 184 | GO105: 184 | GP105: 60 | GQ105: 60 | GS105: 378 | GT105: 378 | GU105: 365000 | GV105: 365 | GW105: 365000 | HB105: 70 | HC105: 70
A106: Argentina | B106: 1 | C106: 1974 | D106: 25620 | H106: 46 | AG106: 121 | AH106: 3.4 | AI106: 543 | AJ106: 272 | AK106: 652 | AN106: 213 | AO106: 213 | AP106: 403 | AQ106: 403 | AR106: 21139 | AS106: 21139 | AT106: 252 | AU106: 0.000252 | AV106: 27951 | AW106: 27951 | AX106: 3635 | AY106: 3635 | BC106: 3931 | BD106: 3931 | BH106: 90 | BI106: 90000 | BK106: 0.1810865191 | BM106: 150 | BN106: 150000 | BP106: 0.3018108652 | BR106: 59.5 | BS106: 59500 | BW106: 30 | BX106: 30000 | BZ106: 0.06036217304 | CB106: 6.7 | CC106: 6700 | CE106: 0.01348088531 | CZ106: 5.8 | DA106: 5800 | DC106: 0.01167002012 | GG106: 1100 | GH106: 0.2126452391 | GI106: 126 | GJ106: 0.4506569343 | GK106: 3545 | GL106: 443 | GN106: 186 | GO106: 186 | GP106: 61 | GQ106: 61 | GS106: 441 | GT106: 441 | GU106: 497000 | GV106: 497 | GW106: 497000 | HB106: 100 | HC106: 100
A107: Argentina | B107: 1 | C107: 1975 | D107: 26052 | H107: 44 | AG107: 97 | AH107: 2.3 | AI107: 1266 | AN107: 202 | AO107: 202 | AP107: 383 | AQ107: 383 | AR107: 20773 | AS107: 20773 | AT107: 265 | AU107: 0.000265 | AV107: 29468 | AW107: 29468 | AX107: 3947 | AY107: 3947 | BC107: 2961 | BD107: 2961 | BH107: 280 | BI107: 280000 | BK107: 0.2074074074 | BM107: 360 | BN107: 360000 | BP107: 0.2666666667 | BR107: 280 | BS107: 280000 | BW107: 160 | BX107: 160000 | BZ107: 0.1185185185 | CB107: 20 | CC107: 20000 | CE107: 0.01481481481 | CZ107: 6 | DA107: 6000 | DC107: 0.004444444444 | DO107: 9 | DP107: 9000 | GG107: 3218 | GH107: 0.6220839813 | GI107: 137 | GJ107: 0.49 | GK107: 3579 | GL107: 452 | GN107: 196 | GO107: 196 | GP107: 62 | GQ107: 62 | GS107: 537 | GT107: 537 | GU107: 1350000 | GV107: 1.35 | GW107: 1350000 | HB107: 0.29 | HC107: 290
A108: Argentina | B108: 1 | C108: 1976 | D108: 26480 | H108: 43 | AG108: 159 | AH108: 4.5 | AN108: 200 | AO108: 200 | AP108: 391 | AQ108: 391 | AR108: 20810 | AS108: 20810 | AT108: 268 | AU108: 0.000268 | AV108: 30216 | AW108: 30216 | AX108: 3033 | AY108: 3033 | BC108: 3916 | BD108: 3916 | BH108: 1.05 | BI108: 1050000 | BM108: 1.59 | BN108: 1590000 | BP108: 0.209486166 | BR108: 1340 | BS108: 1340000 | BW108: 928 | BX108: 928000 | BZ108: 0.1222661397 | CB108: 183 | CC108: 183000 | CE108: 0.02411067194 | CZ108: 48 | DA108: 48000 | DC108: 0.006324110672 | DO108: 81 | DP108: 81000 | GG108: 599 | GH108: 3.726283048 | GI108: 2.58 | GJ108: 2.58 | GK108: 3832 | GL108: 442 | GN108: 220 | GO108: 220 | GP108: 60 | GQ108: 60 | GS108: 533 | GT108: 533 | GU108: 7590000 | GV108: 7.59 | GW108: 7590000 | HB108: 2.04 | HC108: 2040
A109: Argentina | B109: 1 | C109: 1977 | D109: 26912 | H109: 41 | AG109: 103 | AH109: 2.8 | AN109: 211 | AO109: 211 | AP109: 433 | AQ109: 433 | AR109: 22167 | AS109: 22167 | AT109: 270 | AU109: 0.00027 | AV109: 32413 | AW109: 32413 | AX109: 4162 | AY109: 4162 | BC109: 5652 | BD109: 5652 | BH109: 2.26 | BI109: 2260000 | BM109: 5.17 | BN109: 5170000 | BP109: 0.2470138557 | BR109: 3250 | BS109: 3250000 | BW109: 2950 | BX109: 2950000 | BZ109: 0.1409460105 | CB109: 380 | CC109: 380000 | CE109: 0.01815575729 | CZ109: 270 | DA109: 270000 | DC109: 0.01290014333 | DO109: 280 | DP109: 280000 | GG109: 1494 | GH109: 9.293934681 | GI109: 7.04 | GJ109: 7.04 | GK109: 3884 | GL109: 439 | GN109: 218 | GO109: 218 | GP109: 60 | GQ109: 60 | GS109: 465 | GT109: 465 | GU109: 20930000 | GV109: 20.93 | GW109: 20930000 | HB109: 5.69 | HC109: 5690
A110: Argentina | B110: 1 | C110: 1978 | D110: 27348 | H110: 38 | AG110: 102 | AH110: 2.8 | AN110: 188 | AO110: 188 | AP110: 443 | AQ110: 443 | AR110: 23236 | AS110: 23236 | AT110: 255 | AU110: 0.000255 | AV110: 33434 | AW110: 33434 | AX110: 3834 | AY110: 3834 | BC110: 6400 | BD110: 6400 | BH110: 5.87 | BI110: 5870000 | BM110: 14.65 | BN110: 14650000 | BP110: 0.2799006496 | BR110: 9260 | BS110: 9260000 | BW110: 8350 | BX110: 8350000 | BZ110: 0.1595338173 | CB110: 690 | CC110: 690000 | CE110: 0.01318303401 | CZ110: 670 | DA110: 670000 | DC110: 0.01280091708 | DO110: 720 | DP110: 720000 | GG110: 3676 | GH110: 22.86780715 | GI110: 19 | GJ110: 19 | GK110: 3937 | GL110: 442 | GN110: 208 | GO110: 208 | GP110: 59 | GQ110: 59 | GS110: 402 | GT110: 402 | GU110: 52340000 | GV110: 52.34 | GW110: 52340000 | HB110: 12.76 | HC110: 12760
A111: Argentina | B111: 1 | C111: 1979 | D111: 27789 | H111: 33 | AG111: 69 | AH111: 2 | AN111: 218 | AO111: 218 | AP111: 473 | AQ111: 473 | AR111: 24279 | AS111: 24279 | AT111: 303 | AU111: 0.000303 | AV111: 37640 | AW111: 37640 | AX111: 6700 | AY111: 6700 | BC111: 7810 | BD111: 7810 | BH111: 14 | BI111: 14000000 | BM111: 43.5 | BN111: 43500000 | BP111: 0.3052631579 | BR111: 24.8 | BS111: 24800000 | BW111: 23.4 | BX111: 23400000 | BZ111: 0.1642105263 | CB111: 1.96 | CC111: 1960000 | CE111: 0.01375438596 | CZ111: 1.3 | DA111: 1300000 | DC111: 0.009122807018 | DO111: 2.12 | DP111: 2120000 | GG111: 9164 | GH111: 57.00777605 | GI111: 50 | GJ111: 50 | GK111: 4004 | GL111: 441 | GN111: 225 | GO111: 225 | GP111: 60 | GQ111: 60 | GS111: 389 | GT111: 389 | GU111: 142500000 | GV111: 142.5 | GW111: 142500000 | HB111: 32.35 | HC111: 32350
A112: Argentina | B112: 1 | C112: 1980 | D112: 28237 | H112: 33 | I112: 1123 | J112: 44 | K112: 1651 | L112: 981 | M112: 1487 | N112: 425 | O112: 1044 | P112: 495 | Q112: 78 | R112: 3 | S112: 438 | T112: 22 | U112: 611 | V112: 36 | W112: 1355 | X112: 197 | AG112: 82 | AH112: 2.3 | AN112: 213 | AO112: 213 | AP112: 497 | AQ112: 497 | AR112: 25281 | AS112: 25281 | AT112: 327 | AU112: 0.000327 | AV112: 39676 | AW112: 39676 | AX112: 10541 | AY112: 10541 | BC112: 8021 | BD112: 8021 | BH112: 27.5 | BI112: 27500000 | BM112: 82.3 | BN112: 82300000 | BR112: 53.8 | BS112: 53800000 | BW112: 49 | BX112: 49000000 | CB112: 4.29 | CC112: 4290000 | CZ112: 3.12 | DA112: 3120000 | DO112: 5.26 | DP112: 5260000 | GG112: 16075 | GH112: 100 | GI112: 100 | GJ112: 100 | GK112: 4111 | GL112: 510 | GN112: 217 | GO112: 217 | GS112: 398 | GT112: 398 | GU112: 283000000 | GV112: 28.3 | GW112: 28.3 | HB112: 6.3 | HC112: 0.0063
A113: Argentina | B113: 1 | C113: 1981 | D113: 28694 | H113: 34 | AG113: 175 | AH113: 4.5 | AN113: 179 | AO113: 179 | AP113: 502 | AQ113: 502 | AR113: 25534 | AS113: 25534 | AT113: 340 | AU113: 0.00034 | AV113: 38838 | AW113: 38838 | AX113: 9430 | AY113: 9430 | BC113: 9143 | BD113: 9143 | BH113: 46.7 | BI113: 46700000 | BM113: 175 | BN113: 175000000 | BR113: 123 | BS113: 123000000 | BW113: 92 | BX113: 92000000 | CB113: 8.74 | CC113: 8740000 | CZ113: 7.24 | DA113: 7240000 | DO113: 16.2 | DP113: 16200000 | GG113: 210 | GH113: 210 | GI113: 204 | GJ113: 204 | GK113: 4218 | GL113: 528 | GN113: 218 | GO113: 218 | GP113: 78 | GQ113: 78 | GS113: 402 | GT113: 402 | GU113: 548000000 | GV113: 54.8 | GW113: 54.8 | HB113: 10.3 | HC113: 0.0103
A114: Argentina | B114: 1 | C114: 1982 | D114: 29158 | H114: 30 | AG114: 184 | AH114: 4.8 | AN114: 177 | AO114: 177 | AP114: 502 | AQ114: 502 | AR114: 25196 | AS114: 25196 | AT114: 393 | AU114: 0.000393 | AV114: 39804 | AW114: 39804 | AX114: 5337 | AY114: 5337 | BC114: 7625 | BD114: 7625 | BH114: 162.3 | BI114: 162300000 | BM114: 459.3 | BN114: 459300000 | BR114: 305 | BS114: 305000000 | BW114: 232 | BX114: 232000000 | CB114: 25.3 | CC114: 25300000 | CZ114: 21 | DA114: 21000000 | DO114: 44.7 | DP114: 44700000 | GG114: 750 | GH114: 750 | GI114: 541 | GJ114: 541 | GK114: 4382 | GL114: 594 | GN114: 225 | GO114: 225 | GS114: 411 | GT114: 411 | GU114: 1480000000 | GV114: 148 | GW114: 148 | HB114: 23.4 | HC114: 0.0234
A115: Argentina | B115: 1 | C115: 1983 | D115: 29627 | H115: 30 | AG115: 159 | AH115: 4.2 | AN115: 193 | AO115: 193 | AP115: 502 | AQ115: 502 | AR115: 25200 | AS115: 25200 | AT115: 457 | AU115: 0.000457 | AV115: 42998 | AW115: 42998 | AX115: 4504 | AY115: 4504 | BC115: 7836 | BD115: 7836 | BH115: 75 | BI115: 75000 | BM115: 230 | BN115: 230000 | BR115: 149 | BS115: 149 | BW115: 1060 | BX115: 1,060 | CB115: 160 | CC115: 160000000 | CZ115: 80 | DA115: 80000000 | DO115: 140 | DP115: 140000000 | GG115: 3408 | GH115: 3408 | GI115: 2403 | GJ115: 2403 | GK115: 4511 | GL115: 615 | GN115: 233 | GO115: 233 | GP115: 80 | GQ115: 80 | GS115: 417 | GT115: 417 | GU115: 683000 | GV115: 683 | GW115: 683 | HB115: 118 | HC115: 0.118
A116: Argentina | B116: 1 | C116: 1984 | D116: 30097 | H116: 30 | AG116: 152 | AH116: 3.8 | AN116: 197 | AO116: 197 | AP116: 502 | AQ116: 502 | AR116: 24637 | AS116: 24637 | AT116: 478 | AU116: 0.000478 | AV116: 44914 | AW116: 44914 | AX116: 4585 | AY116: 4585 | BC116: 8107 | BD116: 8107 | BH116: 451 | BI116: 451000 | BM116: 1638 | BN116: 1,638,000 | BR116: 885 | BS116: 885 | BW116: 7830 | BX116: 7,830 | CB116: 960 | CC116: 960000000 | CZ116: 450 | DA116: 450000000 | DO116: 930 | DP116: 930000000 | GG116: 23002 | GH116: 23002 | GI116: 17462 | GJ116: 17462 | GK116: 4631 | GL116: 657 | GN116: 219 | GO116: 219 | GP116: 87 | GQ116: 87 | GS116: 508 | GT116: 508 | GU116: 5281000 | GV116: 5281 | GW116: 5281 | HB116: 813 | HC116: 0.813
A117: Argentina | B117: 1 | C117: 1985 | D117: 30564 | H117: 25 | AG117: 216 | AH117: 5.3 | AN117: 179 | AO117: 179 | AP117: 487 | AQ117: 487 | AR117: 23607 | AS117: 23607 | AT117: 509 | AU117: 0.000509 | AV117: 45265 | AW117: 45265 | AX117: 3814 | AY117: 3814 | BC117: 8396 | BD117: 8396 | BH117: 3.03 | BI117: 3030 | BM117: 8.43 | BN117: 8430 | BR117: 9.4 | BS117: 9400 | BW117: 8.3 | BX117: 8300 | CB117: 1.1 | CC117: 1100 | CZ117: 0.61 | DA117: 610 | DO117: 1.14 | DP117: 1140 | GG117: 852 | GH117: 195977.04 | GI117: 772 | GJ117: 134806.64 | GK117: 4589 | GL117: 716 | GN117: 230 | GO117: 230 | GP117: 94 | GQ117: 94 | GS117: 604 | GT117: 604 | GU117: 39600 | GV117: 39.6 | GW117: 39600 | HB117: 5.3 | HC117: 5.3
A118: Argentina | B118: 1 | C118: 1986 | D118: 31030 | H118: 26 | AG118: 178 | AH118: 4.4 | AN118: 200 | AO118: 200 | AP118: 487 | AQ118: 487 | AR118: 22283 | AS118: 22283 | AT118: 553 | AU118: 0.000553 | AV118: 48984 | AW118: 48984 | AX118: 4724 | AY118: 4724 | BC118: 6852 | BD118: 6852 | BH118: 5.6 | BI118: 5600 | BM118: 17.76 | BN118: 17760 | BR118: 16 | BS118: 16000 | BW118: 15.2 | BX118: 15200 | CB118: 1.62 | CC118: 1620 | CZ118: 1.97 | DA118: 1970 | DO118: 2.31 | DP118: 2310 | GG118: 1250 | GH118: 287525 | GI118: 1468 | GJ118: 256342.16 | GK118: 4778 | GL118: 762 | GN118: 239 | GO118: 239 | GP118: 96 | GQ118: 96 | GS118: 707 | GT118: 707 | GU118: 99840 | GV118: 9984 | GW118: 9984000 | HB118: 1743 | HC118: 1743
A119: Argentina | B119: 1 | C119: 1987 | D119: 31497 | H119: 26 | AG119: 230 | AH119: 5.3 | AI119: 638 | AJ119: 5464.1 | AK119: 10561.8 | AN119: 198 | AO119: 198 | AP119: 468 | AQ119: 468 | AR119: 21999 | AS119: 21999 | AT119: 657 | AU119: 0.000657 | AV119: 52165 | AW119: 52165 | AX119: 5818 | AY119: 5818 | BC119: 6360 | BD119: 6360 | BH119: 12.58 | BI119: 12580 | BM119: 48.42 | BN119: 48420 | BR119: 35.5 | BS119: 35500 | BW119: 32.6 | BX119: 32600 | CB119: 2.83 | CC119: 2830 | CZ119: 4.34 | DA119: 4340 | DO119: 4.77 | DP119: 4770 | GG119: 2787 | GH119: 641065.74 | GI119: 3395 | GJ119: 592834.9 | GK119: 4907 | GL119: 774 | GN119: 252 | GO119: 252 | GP119: 111 | GQ119: 111 | GS119: 755 | GT119: 755 | GU119: 220000 | GV119: 23 | HB119: 5 | HC119: 0.005
A120: Argentina | B120: 1 | C120: 1988 | D120: 31534 | H120: 26 | AG120: 251 | AH120: 5.9 | AI120: 463 | AJ120: 3256.7 | AK120: 7876.9 | AN120: 185 | AO120: 185 | AP120: 518 | AQ120: 518 | AR120: 23119 | AS120: 23119 | AT120: 775 | AU120: 0.000775 | AV120: 53062 | AW120: 53062 | AX120: 5322 | AY120: 5322 | BC120: 9135 | BD120: 9135 | BH120: 55 | BI120: 55000 | BM120: 260 | BN120: 260000 | BR120: 120 | BS120: 120000 | BW120: 103 | BX120: 103000 | CB120: 9.85 | CC120: 9850 | CZ120: 10.4 | DA120: 10400 | DO120: 6.36 | DP120: 6360 | GG120: 14283 | GH120: 3285375.66 | GI120: 15041 | GJ120: 2626459.42 | GK120: 4999 | GL120: 811 | GN120: 260 | GO120: 260 | GP120: 118 | GQ120: 118 | GU120: 1080000 | GV120: 111 | HB120: 21 | HC120: 0.021
A121: Argentina | B121: 1 | C121: 1989 | D121: 32114 | H121: 26 | AG121: 323 | AH121: 7.3 | AI121: 193 | AJ121: 1737.2 | AK121: 2331.2 | AN121: 171 | AO121: 171 | AR121: 23641 | AS121: 23641 | AT121: 784 | AU121: 0.000784 | AV121: 46010 | AW121: 46010 | AX121: 4203 | AY121: 4203 | BC121: 9579 | BD121: 9579 | BH121: 273 | BI121: 273 | BM121: 652 | BN121: 652 | BR121: 305.6 | BS121: 305.6 | BW121: 314 | BX121: 314 | CB121: 12.5 | CC121: 12.5 | CZ121: 17.5 | DA121: 17.5 | DO121: 21.1 | DP121: 21.1 | GG121: 504476 | GH121: 116039569.5 | GI121: 463112 | GJ121: 80868617.44 | GU121: 30990000 | GV121: 3244 | HB121: 503 | HC121: 0.503
A122: Argentina | B122: 1 | C122: 1990 | D122: 32547 | H122: 26 | AG122: 441 | AH122: 9.2 | AN122: 175 | AO122: 175 | AR122: 24784 | AS122: 24784 | AT122: 793 | AU122: 0.000793 | AV122: 47412 | AW122: 47412 | AX122: 4076 | AY122: 4076 | BC122: 12353 | BD122: 12353 | BH122: 3068 | BI122: 3068 | BM122: 7913 | BN122: 7,913 | BR122: 7282.6 | BS122: 7282.6 | BW122: 7159 | BX122: 7159 | CB122: 166 | CC122: 166 | CZ122: 171 | DA122: 171 | DO122: 689 | DP122: 689 | GG122: 8611405 | GH122: 1980795378 | GI122: 10716641 | GJ122: 1871339851 | GK122: 4965 | GU122: 679060000 | GV122: 68922 | HB122: 9647 | HC122: 9.647
A123: Argentina | B123: 1 | C123: 1991 | D123: 32966 | H123: 25 | AG123: 266 | AH123: 5.8 | AN123: 196 | AO123: 196 | AR123: 25329 | AS123: 25329 | AT123: 886 | AU123: 0.000886 | AV123: 50619 | AW123: 50619 | AX123: 8275 | AY123: 8275 | BC123: 11978 | BD123: 11978 | BH123: 7626 | BI123: 7626 | BM123: 19097 | BN123: 19,097 | BR123: 20648.6 | BS123: 20648.6 | BW123: 20192 | BX123: 20192 | CB123: 599 | CC123: 599 | CZ123: 452 | DA123: 452 | DO123: 2494 | DP123: 2494 | GG123: 110 | GH123: 2178874916 | GI123: 271 | GJ123: 5071330996 | GK123: 5041 | GN123: 306 | GO123: 306 | GS123: 817 | GT123: 817 | GU123: 1785970000 | GV123: 180898 | HB123: 26478 | HC123: 26.478
A124: Argentina | B124: 1 | C124: 1992 | D124: 33375 | H124: 24 | AG124: 321 | AH124: 6.7 | AR124: 28617 | AS124: 28617 | AT124: 899 | AU124: 0.000899 | AV124: 54521 | AW124: 54521 | AX124: 14872 | AY124: 14872 | BC124: 12235 | BD124: 12235 | BH124: 11364 | BI124: 11364 | BM124: 31030 | BN124: 31,030 | BR124: 27271.7 | BS124: 27271.7 | BW124: 27832 | BX124: 27832 | CB124: 1449 | CC124: 1449 | CZ124: 841 | DA124: 841 | DO124: 5497 | DP124: 5497 | GG124: 117 | GH124: 2317530592 | GI124: 339 | GJ124: 6343842095 | GS124: 700 | GT124: 700 | GU124: 224782 | GV124: 226638 | HB124: 37854 | HC124: 37.854
A125: Argentina | B125: 1 | C125: 1993 | D125: 33778 | H125: 23 | AG125: 520 | AH125: 10.1 | AR125: 30331 | AS125: 30331 | AT125: 925 | AU125: 0.000925 | AV125: 59353 | AW125: 59353 | AX125: 16784 | AY125: 16784 | BC125: 13117 | BD125: 13117 | BH125: 15119 | BI125: 15119 | BM125: 45453 | BN125: 45,453 | GG125: 119 | GH125: 2357146500 | GI125: 369 | GJ125: 6905244050 | GK125: 4990 | GN125: 286 | GO125: 286 | GU125: 248644
A126: Argentina | B126: 1 | C126: 1994 | D126: 34318 | H126: 23 | AG126: 595 | AH126: 12.1 | AR126: 34278 | AS126: 34278 | AT126: 996 | AU126: 0.000996 | AV126: 65686 | AW126: 65686 | AX126: 21527 | AY126: 21527 | BC126: 15659 | BD126: 15659 | BH126: 16362 | BI126: 16362 | BM126: 53471 | BN126: 53,471 | BW126: 15592 | BX126: 15,592 | GG126: 93 | GH126: 93 | GI126: 97 | GJ126: 97 | GK126: 5181 | GL126: 2308 | GN126: 295 | GO126: 295 | GP126: 239 | GQ126: 239 | GS126: 741 | GT126: 741 | GU126: 270123 | GV126: 281924 | GW126: 281924 | HB126: 51331 | HC126: 51.331
A127: Argentina | B127: 1 | C127: 1995 | D127: 34768 | H127: 23 | AG127: 964 | AH127: 18.8 | AR127: 35888 | AS127: 35888 | AT127: 1062 | AU127: 0.001062 | AV127: 67085 | AW127: 67085 | AX127: 20122 | AY127: 20122 | BC127: 20967 | BD127: 20967 | BH127: 16619 | BI127: 16619 | BM127: 51971 | BN127: 51,971 | BW127: 38061 | BX127: 38061 | GG127: 100 | GH127: 100 | GI127: 100 | GJ127: 100 | GK127: 5250 | GN127: 327 | GO127: 327 | GU127: 263250 | GV127: 279613 | GW127: 279613 | HB127: 46285 | HC127: 46.285
A128: Argentina | B128: 1 | C128: 1996 | D128: 35220 | H128: 22 | AG128: 1531 | AH128: 17.2 | AR128: 46311 | AS128: 46311 | AT128: 1032 | AU128: 0.001032 | AV128: 69892 | AW128: 69892 | AX128: 23762 | AY128: 23762 | BC128: 23811 | BD128: 23811 | BH128: 19042 | BI128: 19042 | BM128: 61752 | BN128: 61,752 | BR128: 40575 | BS128: 40575 | BW128: 35501 | BX128: 35501 | GG128: 104 | GH128: 104 | GI128: 100 | GJ128: 100 | GK128: 5153 | GL128: 2594 | GN128: 309 | GO128: 309 | GP128: 125 | GQ128: 125 | GU128: 282730 | GV128: 297460 | GW128: 297460 | HB128: 49211 | HC128: 49.211
A129: Argentina | B129: 1 | C129: 1997 | D129: 35672 | H129: 22 | AG129: 1375 | AH129: 15.1 | AR129: 42837 | AS129: 42837 | AT129: 1215 | AU129: 0.001215 | AV129: 73001 | AW129: 73001 | AX129: 30349 | AY129: 30349 | BC129: 25516 | BD129: 25516 | BH129: 21482 | BI129: 21482 | BM129: 77520 | BN129: 77,520 | BR129: 41066 | BS129: 41066 | BW129: 41944 | BX129: 41944 | GG129: 102 | GH129: 102 | GI129: 101 | GJ129: 101 | GU129: 302038 | GV129: 323548 | GW129: 323548 | HB129: 56727 | HC129: 56.727
A130: Argentina | B130: 1 | C130: 1998 | D130: 36125 | H130: 21 | AG130: 1218 | AH130: 13.1 | BH130: 21489 | BI130: 21489 | BM130: 85651 | BN130: 85,651 | BW130: 42921 | BX130: 42921 | GG130: 99 | GH130: 99 | GI130: 102 | GJ130: 102 | GU130: 295425 | GV130: 299096 | GW130: 299096 | HB130: 59276 | HC130: 59.276
A131: Argentina | B131: 1 | C131: 1999 | BH131: 21842 | BI131: 21842 | BM131: 89163 | BN131: 89,163 | BW131: 41132 | BX131: 41132 | GG131: 95 | GH131: 95 | GI131: 100 | GJ131: 100 | GU131: 289427 | GV131: 283403 | GW131: 283403 | HB131: 53909 | HC131: 53.909
A132: Argentina | B132: 1 | C132: 2000 | GG132: 99 | GH132: 99 | GI132: 100 | GJ132: 100 | GU132: 287079
A133: Australia | B133: 2 | C133: 1870 | D133: 1648 | H133: 111 | AX133: 17.8 | AY133: 17.8 | BA133: 0.217870257 | BC133: 18.4 | BD133: 18.4 | BF133: 0.2252141983 | BW133: 7.6 | BX133: 7.6 | BZ133: 0.09302325581 | GI133: 72 | GJ133: 4.482 | GM133: 260 | GU133: 81.7 | GV133: 81.7 | GW133: 81.7 | HB133: 8.9 | HC133: 0.0089
A134: Australia | B134: 2 | C134: 1871 | D134: 1701 | H134: 104 | AX134: 17 | AY134: 17 | BA134: 0.2168367347 | BC134: 22.9 | BD134: 22.9 | BF134: 0.2920918367 | BW134: 4.2 | BX134: 4.2 | BZ134: 0.05357142857 | GG134: 74 | GH134: =74/58*GH164 -> 5.20738 | GI134: 73 | GJ134: 4.54425 | GM134: 277 | GU134: 78.4 | GV134: 78.4 | GW134: 78.4 | HB134: 8.2 | HC134: 0.0082
A135: Australia | B135: 2 | C135: 1872 | D135: 1743 | H135: 118 | AX135: 18.8 | AY135: 18.8 | BA135: 0.2008547009 | BC135: 26.3 | BD135: 26.3 | BF135: 0.280982906 | BW135: 8.6 | BX135: 8.6 | BZ135: 0.09188034188 | GI135: 74 | GJ135: 4.6065 | GM135: 303 | GU135: 93.6 | GV135: 93.6 | GW135: 93.6 | HB135: 12.2 | HC135: 0.0122
A136: Australia | B136: 2 | C136: 1873 | D136: 1795 | H136: 114 | AX136: 24.6 | AY136: 24.6 | BA136: 0.2256880734 | BC136: 24.8 | BD136: 24.8 | BF136: 0.2275229358 | BW136: 9.3 | BX136: 9.3 | BZ136: 0.08532110092 | GI136: 79 | GJ136: 4.91775 | GM136: 377 | GU136: 109 | GV136: 109 | GW136: 109 | HB136: 13.6 | HC136: 0.0136
A137: Australia | B137: 2 | C137: 1874 | D137: 1849 | H137: 125 | AX137: 24.6 | AY137: 24.6 | BA137: 0.2236363636 | BC137: 26.8 | BD137: 26.8 | BF137: 0.2436363636 | BW137: 10.2 | BX137: 10.2 | BZ137: 0.09272727273 | GI137: 72 | GJ137: 4.482 | GM137: 401 | GU137: 110 | GV137: 110 | GW137: 110 | HB137: 15.6 | HC137: 0.0156
A138: Australia | B138: 2 | C138: 1875 | D138: 1898 | H138: 139 | AX138: 24.9 | AY138: 24.9 | BA138: 0.2092436975 | BC138: 25.9 | BD138: 25.9 | BF138: 0.2176470588 | BW138: 11.2 | BX138: 11.2 | BZ138: 0.09411764706 | GI138: 75 | GJ138: 4.66875 | GM138: 417 | GU138: 119 | GV138: 119 | GW138: 119 | HB138: 19.1 | HC138: 0.0191
A139: Australia | B139: 2 | C139: 1876 | D139: 1959 | H139: 119 | AX139: 24 | AY139: 24 | BA139: 0.2033898305 | BC139: 25.6 | BD139: 25.6 | BF139: 0.2169491525 | BW139: 12.4 | BX139: 12.4 | BZ139: 0.1050847458 | GI139: 76 | GJ139: 4.731 | GM139: 436 | GU139: 118 | GV139: 118 | GW139: 118 | HB139: 19.8 | HC139: 0.0198
A140: Australia | B140: 2 | C140: 1877 | D140: 2031 | H140: 127 | AX140: 25.8 | AY140: 25.8 | BA140: 0.215 | BC140: 25.5 | BD140: 25.5 | BF140: 0.2125 | BW140: 13.9 | BX140: 13.9 | BZ140: 0.1158333333 | GI140: 77 | GJ140: 4.79325 | GM140: 451 | GU140: 120 | GV140: 120 | GW140: 120 | HB140: 25.3 | HC140: 0.0253
A141: Australia | B141: 2 | C141: 1878 | D141: 2092 | H141: 131 | AX141: 26.2 | AY141: 26.2 | BA141: 0.2079365079 | BC141: 25 | BD141: 25 | BF141: 0.1984126984 | BW141: 13.3 | BX141: 13.3 | BZ141: 0.1055555556 | GI141: 72 | GJ141: 4.482 | GM141: 474 | GU141: 126 | GV141: 126 | GW141: 126 | HB141: 22.9 | HC141: 0.0229
A142: Australia | B142: 2 | C142: 1879 | D142: 2161 | H142: 115 | AX142: 24.2 | AY142: 24.2 | BA142: 0.1875968992 | BC142: 22.2 | BD142: 22.2 | BF142: 0.1720930233 | BW142: 12.9 | BX142: 12.9 | BZ142: 0.1 | GI142: 75 | GJ142: 4.66875 | GU142: 129 | GV142: 129 | GW142: 129 | HB142: 20.8 | HC142: 0.0208
A143: Australia | B143: 2 | C143: 1880 | D143: 2232 | H143: 117 | AX143: 22.9 | AY143: 22.9 | BA143: 0.1708955224 | BC143: 29.7 | BD143: 29.7 | BF143: 0.221641791 | BW143: 13.7 | BX143: 13.7 | BZ143: 0.102238806 | GI143: 78 | GJ143: 4.8555 | GM143: 495 | GU143: 134 | GV143: 134 | GW143: 134 | HB143: 23.6 | HC143: 0.0236
A144: Australia | B144: 2 | C144: 1881 | D144: 2307 | H144: 116 | AX144: 29.1 | AY144: 29.1 | BA144: 0.2049295775 | BC144: 26.9 | BD144: 26.9 | BF144: 0.1894366197 | BW144: 16.9 | BX144: 16.9 | BZ144: 0.1190140845 | GG144: 67 | GH144: 4.71479 | GI144: 78 | GJ144: 4.8555 | GM144: 513 | GU144: 142 | GV144: 142 | GW144: 142 | HB144: 30.2 | HC144: 0.0302
A145: Australia | B145: 2 | C145: 1882 | D145: 2388 | H145: 135 | AX145: 36.1 | AY145: 36.1 | BA145: 0.2439189189 | BC145: 28.7 | BD145: 28.7 | BF145: 0.1939189189 | BW145: 18.2 | BX145: 18.2 | BZ145: 0.122972973 | GI145: 86 | GJ145: 5.3535 | GM145: 497 | GU145: 148 | GV145: 148 | GW145: 148 | HB145: 26.7 | HC145: 0.0267
A146: Australia | B146: 2 | C146: 1883 | D146: 2506 | H146: 121 | AX146: 35.5 | AY146: 35.5 | BA146: 0.2151515152 | BC146: 31.5 | BD146: 31.5 | BF146: 0.1909090909 | BW146: 17.5 | BX146: 17.5 | BZ146: 0.1060606061 | GI146: 85 | GJ146: 5.29125 | GM146: 466 | GU146: 165 | GV146: 165 | GW146: 165 | HB146: 30.9 | HC146: 0.0309
A147: Australia | B147: 2 | C147: 1884 | D147: 2606 | H147: 125 | AX147: 37 | AY147: 37 | BA147: 0.2283950617 | BC147: 27.6 | BD147: 27.6 | BF147: 0.1703703704 | BW147: 18.9 | BX147: 18.9 | BZ147: 0.1166666667 | GI147: 83 | GJ147: 5.16675 | GM147: 482 | GU147: 162 | GV147: 162 | GW147: 162 | HB147: 33 | HC147: 0.033
A148: Australia | B148: 2 | C148: 1885 | D148: 2695 | H148: 128 | AX148: 39.9 | AY148: 39.9 | BA148: 0.2306358382 | BC148: 26.3 | BD148: 26.3 | BF148: 0.1520231214 | BW148: 19.9 | BX148: 19.9 | BZ148: 0.1150289017 | GI148: 84 | GJ148: 5.229 | GM148: 502 | GU148: 173 | GV148: 173 | GW148: 173 | HB148: 32.3 | HC148: 0.0323
A149: Australia | B149: 2 | C149: 1886 | D149: 2788 | H149: 126 | AX149: 34.2 | AY149: 34.2 | BA149: 0.2011764706 | BC149: 20.8 | BD149: 20.8 | BF149: 0.1223529412 | BW149: 19.9 | BX149: 19.9 | BZ149: 0.1170588235 | GI149: 81 | GJ149: 5.04225 | GM149: 511 | GU149: 170 | GV149: 170 | GW149: 170 | HB149: 37.1 | HC149: 0.0371
A150: Australia | B150: 2 | C150: 1887 | D150: 2881 | H150: 116 | AX150: 29.6 | AY150: 29.6 | BA150: 0.1574468085 | BC150: 24 | BD150: 24 | BF150: 0.1276595745 | BW150: 21.2 | BX150: 21.2 | BZ150: 0.1127659574 | GI150: 81 | GJ150: 5.04225 | GM150: 526 | GU150: 188 | GV150: 188 | GW150: 188 | HB150: 38 | HC150: 0.038
A151: Australia | B151: 2 | C151: 1888 | D151: 2982 | H151: 116 | AX151: 36.9 | AY151: 36.9 | BA151: 0.1911917098 | BC151: 28.8 | BD151: 28.8 | BF151: 0.1492227979 | BW151: 23.3 | BX151: 23.3 | BZ151: 0.1207253886 | GI151: 80 | GJ151: 4.98 | GM151: 533 | GU151: 193 | GV151: 193 | GW151: 193 | HB151: 40.7 | HC151: 0.0407
A152: Australia | B152: 2 | C152: 1889 | D152: 3062 | H152: 132 | AX152: 36.6 | AY152: 36.6 | BA152: 0.1726415094 | BC152: 29.6 | BD152: 29.6 | BF152: 0.1396226415 | BW152: 24.9 | BX152: 24.9 | BZ152: 0.1174528302 | GI152: 82 | GJ152: 5.1045 | GM152: 544 | GU152: 212 | GV152: 212 | GW152: 212 | HB152: 39.6 | HC152: 0.0396
A153: Australia | B153: 2 | C153: 1890 | D153: 3151 | H153: 107 | AX153: 36.2 | AY153: 36.2 | BA153: 0.1757281553 | BC153: 28.2 | BD153: 28.2 | BF153: 0.1368932039 | BW153: 25 | BX153: 25 | BZ153: 0.1213592233 | GI153: 82 | GJ153: 5.1045 | GM153: 552 | GU153: 206 | GV153: 206 | GW153: 206 | HB153: 35.1 | HC153: 0.0351
A154: Australia | B154: 2 | C154: 1891 | D154: 3241 | H154: 115 | AX154: 37.7 | AY154: 37.7 | BA154: 0.1857142857 | BC154: 39.3 | BD154: 39.3 | BF154: 0.1935960591 | BW154: 26 | BX154: 26 | BZ154: 0.1280788177 | GG154: 57 | GH154: =57/58*GH164 -> 4.01109 | GI154: 70 | GJ154: 4.3575 | GM154: 581 | GU154: 203 | GV154: 203 | GW154: 203 | HB154: 39.6 | HC154: 0.0396
A155: Australia | B155: 2 | C155: 1892 | D155: 3306 | H155: 106 | AX155: 30.1 | AY155: 30.1 | BA155: 0.1760233918 | BC155: 34.6 | BD155: 34.6 | BF155: 0.2023391813 | BW155: 26.1 | BX155: 26.1 | BZ155: 0.1526315789 | GI155: 68 | GJ155: 4.233 | GM155: 590 | GU155: 171 | GV155: 171 | GW155: 171 | HB155: 23.4 | HC155: 0.0234
A156: Australia | B156: 2 | C156: 1893 | D156: 3362 | H156: 116 | AX156: 23.8 | AY156: 23.8 | BA156: 0.1555555556 | BC156: 35.8 | BD156: 35.8 | BF156: 0.2339869281 | BW156: 23.9 | BX156: 23.9 | BZ156: 0.1562091503 | GI156: 63 | GJ156: 3.92175 | GM156: 583 | GU156: 153 | GV156: 153 | GW156: 153 | HB156: 17.1 | HC156: 0.0171
A157: Australia | B157: 2 | C157: 1894 | D157: 3427 | H157: 104 | AX157: 23.2 | AY157: 23.2 | BA157: 0.1567567568 | BC157: 34.6 | BD157: 34.6 | BF157: 0.2337837838 | BW157: 23.7 | BX157: 23.7 | BZ157: 0.1601351351 | GI157: 58 | GJ157: 3.6105 | GM157: 582 | GU157: 148 | GV157: 148 | GW157: 148 | HB157: 17.7 | HC157: 0.0177
A158: Australia | B158: 2 | C158: 1895 | D158: 3492 | H158: 101 | AX158: 29.7 | AY158: 29.7 | BA158: 0.2106382979 | BC158: 36.5 | BD158: 36.5 | BF158: 0.2588652482 | BW158: 24.2 | BX158: 24.2 | BZ158: 0.1716312057 | GI158: 56 | GJ158: 3.486 | GM158: 603 | GU158: 141 | GV158: 141 | GW158: 141 | HB158: 15.6 | HC158: 0.0156
A159: Australia | B159: 2 | C159: 1896 | D159: 3553 | H159: 114 | AX159: 32 | AY159: 32 | BA159: 0.2 | BC159: 37.8 | BD159: 37.8 | BF159: 0.23625 | BW159: 25.2 | BX159: 25.2 | BZ159: 0.1575 | GI159: 55 | GJ159: 3.42375 | GM159: 623 | GU159: 160 | GV159: 160 | GW159: 160 | HB159: 20.7 | HC159: 0.0207
A160: Australia | B160: 2 | C160: 1897 | D160: 3618 | H160: 105 | AX160: 31.5 | AY160: 31.5 | BA160: 0.2058823529 | BC160: 40.9 | BD160: 40.9 | BF160: 0.2673202614 | BW160: 25.8 | BX160: 25.8 | BZ160: 0.168627451 | GI160: 54 | GJ160: 3.3615 | GM160: 725 | GU160: 153 | GV160: 153 | GW160: 153 | HB160: 15.4 | HC160: 0.0154
A161: Australia | B161: 2 | C161: 1898 | D161: 3665 | H161: 128 | AX161: 41.4 | AY161: 41.4 | BA161: 0.2325842697 | BC161: 44 | BD161: 44 | BF161: 0.2471910112 | BW161: 26.4 | BX161: 26.4 | BZ161: 0.1483146067 | GI161: 56 | GJ161: 3.486 | GM161: 740 | GU161: 178 | GV161: 178 | GW161: 178 | HB161: 22.6 | HC161: 0.0226
A162: Australia | B162: 2 | C162: 1899 | D162: 3716 | H162: 116 | AX162: 34.3 | AY162: 34.3 | BA162: 0.1895027624 | BC162: 52 | BD162: 52 | BF162: 0.2872928177 | BW162: 27.7 | BX162: 27.7 | BZ162: 0.153038674 | GI162: 60 | GJ162: 3.735 | GM162: 760 | GU162: 180.75 | GV162: 181 | GW162: 181 | HB162: 23.1 | HC162: 0.0231
A163: Australia | B163: 2 | C163: 1900 | D163: 3765 | H163: 100 | AX163: 42.4 | AY163: 42.4 | BA163: 0.2243386243 | BC163: 49.2 | BD163: 49.2 | BF163: 0.2603174603 | BW163: 29 | BX163: 29 | BZ163: 0.1534391534 | GI163: 57 | GJ163: 3.54825 | GM163: 777 | GU163: 189 | GV163: 189 | GW163: 189 | HB163: 22.9 | HC163: 0.0229
A164: Australia | B164: 2 | C164: 1901 | D164: 3825 | H164: 104 | I164: 494 | K164: 351 | M164: 188 | N164: 119 | O164: 120 | P164: 21 | Q164: 39 | S164: 76 | U164: 35 | V164: 3 | W164: 192 | X164: 15 | AG164: 58 | AH164: 3.9 | AX164: 42.4 | AY164: 42.4 | BA164: 0.2231578947 | BC164: 49.7 | BD164: 49.7 | BF164: 0.2615789474 | BR164: 4.9 | BS164: 4.9 | BU164: 0.02578947368 | BW164: 11 | BX164: 11 | BZ164: 0.05789473684 | CB164: 7.7 | CC164: 7.7 | CE164: 0.04052631579 | CK164: 1.2 | CL164: 1.2 | CN164: 0.006315789474 | GG164: 58 | GH164: 4.08146 | GI164: 61 | GJ164: 3.79725 | GM164: 787 | GU164: 209.5 | GV164: 190 | GW164: 190 | HB164: 28.2 | HC164: 0.0282
A165: Australia | B165: 2 | C165: 1902 | D165: 3875 | H165: 107 | AG165: 74 | AH165: 4.8 | AX165: 38.4 | AY165: 38.4 | BA165: 0.08648648649 | BC165: 42.6 | BD165: 42.6 | BF165: 0.09594594595 | BR165: 11.3 | BS165: 11.3 | BU165: 0.02545045045 | BW165: 12 | BX165: 12 | BZ165: 0.02702702703 | CB165: 8.2 | CC165: 8.2 | CE165: 0.01846846847 | CK165: 1.5 | CL165: 1.5 | CN165: 0.003378378378 | GG165: 63 | GH165: 4.43331 | GI165: 64 | GJ165: 3.984 | GM165: 781 | GU165: 222 | GV165: 444 | GW165: 444 | HB165: 77 | HC165: 0.077
A166: Australia | B166: 2 | C166: 1903 | D166: 3917 | H166: 111 | AG166: 135 | AH166: 8.5 | AX166: 35.3 | AY166: 35.3 | BA166: 0.08247663551 | BC166: 47 | BD166: 47 | BF166: 0.1098130841 | BR166: 12.1 | BS166: 12.1 | BU166: 0.02827102804 | BW166: 12 | BX166: 12 | BZ166: 0.02803738318 | CB166: 7.6 | CC166: 7.6 | CE166: 0.01775700935 | CK166: 1.5 | CL166: 1.5 | CN166: 0.003504672897 | GG166: 63 | GH166: 4.43331 | GI166: 63 | GJ166: 3.92175 | GM166: 776 | GU166: 214 | GV166: 428 | GW166: 428 | HB166: 67 | HC166: 0.067
A167: Australia | B167: 2 | C167: 1904 | D167: 3974 | H167: 82 | AG167: 156 | AH167: 9.4 | AX167: 33.7 | AY167: 33.7 | BA167: 0.07522321429 | BC167: 56.3 | BD167: 56.3 | BF167: 0.1256696429 | BR167: 11.6 | BS167: 11.6 | BU167: 0.02589285714 | BW167: 11 | BX167: 11 | BZ167: 0.02455357143 | CB167: 7 | CC167: 7 | CE167: 0.015625 | CK167: 1.8 | CL167: 1.8 | CN167: 0.004017857143 | GG167: 54 | GH167: 3.79998 | GI167: 59 | GJ167: 3.67275 | GM167: 772 | GU167: 224 | GV167: 448 | GW167: 448 | HB167: 51 | HC167: 0.051
A168: Australia | B168: 2 | C168: 1905 | D168: 4033 | H168: 82 | AG168: 141 | AH168: 8.6 | AX168: 34.9 | AY168: 34.9 | BA168: 0.0786036036 | BC168: 55 | BD168: 55 | BF168: 0.1238738739 | BR168: 11.5 | BS168: 11.5 | BU168: 0.0259009009 | BW168: 12 | BX168: 12 | BZ168: 0.02702702703 | CB168: 7.1 | CC168: 7.1 | CE168: 0.01599099099 | CK168: 1.9 | CL168: 1.9 | CN168: 0.004279279279 | GG168: 55 | GH168: 3.87035 | GI168: 62 | GJ168: 3.8595 | GM168: 767 | GU168: 222 | GV168: 444 | GW168: 444 | HB168: 46 | HC168: 0.046
A169: Australia | B169: 2 | C169: 1906 | D169: 4091 | H169: 83 | AG169: 108 | AH169: 6.6 | AX169: 40.7 | AY169: 40.7 | BA169: 0.08496868476 | BC169: 67.7 | BD169: 67.7 | BF169: 0.1413361169 | BR169: 11.9 | BS169: 11.9 | BU169: 0.0248434238 | BW169: 13 | BX169: 13 | BZ169: 0.02713987474 | CB169: 7.7 | CC169: 7.7 | CE169: 0.01607515658 | CK169: 2 | CL169: 2 | CN169: 0.004175365344 | GG169: 57 | GH169: 4.01109 | GI169: 62 | GJ169: 3.8595 | GM169: 762 | GS169: 2595 | GT169: 2.595 | GU169: 239.5 | GV169: 479 | GW169: 479 | HB169: 52 | HC169: 0.052
A170: Australia | B170: 2 | C170: 1907 | D170: 4162 | H170: 81 | AG170: 87 | AH170: 5.2 | AX170: 47.1 | AY170: 47.1 | BA170: 0.08738404453 | BC170: 71.4 | BD170: 71.4 | BF170: 0.1324675325 | BR170: 12.8 | BS170: 12.8 | BU170: 0.02374768089 | BW170: 15 | BX170: 15 | BZ170: 0.02782931354 | CB170: 9.3 | CC170: 9.3 | CE170: 0.0172541744 | CK170: 2.3 | CL170: 2.3 | CN170: 0.00426716141 | GG170: 61 | GH170: 4.29257 | GI170: 62 | GJ170: 3.8595 | GM170: 764 | GS170: 2817 | GT170: 2.817 | GU170: 269.5 | GV170: 539 | GW170: 539 | HB170: 71 | HC170: 0.071
A171: Australia | B171: 2 | C171: 1908 | D171: 4232 | H171: 78 | AG171: 58 | AH171: 3.4 | AX171: 45.3 | AY171: 45.3 | BA171: 0.08451492537 | BC171: 63.7 | BD171: 63.7 | BF171: 0.1188432836 | BR171: 14.8 | BS171: 14.8 | BU171: 0.0276119403 | BW171: 14 | BX171: 14 | BZ171: 0.02611940299 | CB171: 8.6 | CC171: 8.6 | CE171: 0.01604477612 | CK171: 2.2 | CL171: 2.2 | CN171: 0.004104477612 | GG171: 67 | GH171: 4.71479 | GI171: 65 | GJ171: 4.04625 | GM171: 771 | GS171: 2914 | GT171: 2.914 | GU171: 268 | GV171: 536 | GW171: 536 | HB171: 74 | HC171: 0.074
A172: Australia | B172: 2 | C172: 1909 | D172: 4324 | H172: 72 | AG172: 58 | AH172: 3.3 | AX172: 46.5 | AY172: 46.5 | BA172: 0.08115183246 | BC172: 64.2 | BD172: 64.2 | BF172: 0.1120418848 | BR172: 13.9 | BS172: 13.9 | BU172: 0.0242582897 | BW172: 16 | BX172: 16 | BZ172: 0.02792321117 | CB172: 9.5 | CC172: 9.5 | CE172: 0.01657940663 | CK172: 2.1 | CL172: 2.1 | CN172: 0.003664921466 | GG172: 60 | GH172: 4.2222 | GI172: 65 | GJ172: 4.04625 | GM172: 789 | GS172: 3041 | GT172: 3.041 | GU172: 286.5 | GV172: 573 | GW172: 573 | HB172: 74 | HC172: 0.074
A173: Australia | B173: 2 | C173: 1910 | D173: 4425 | H173: 75 | AG173: 60 | AH173: 3.3 | AX173: 54.6 | AY173: 54.6 | BA173: 0.08764044944 | BC173: 73.5 | BD173: 73.5 | BF173: 0.1179775281 | BR173: 16.6 | BS173: 16.6 | BU173: 0.02664526485 | BW173: 19 | BX173: 19 | BZ173: 0.0304975923 | CB173: 11 | CC173: 11 | CE173: 0.0176565008 | CK173: 2.5 | CL173: 2.5 | CN173: 0.004012841091 | GG173: 60 | GH173: 4.2222 | GI173: 67 | GJ173: 4.17075 | GM173: 787 | GS173: 3272 | GT173: 3.272 | GU173: 311.5 | GV173: 623 | GW173: 623 | HB173: 79 | HC173: 0.079
A174: Australia | B174: 2 | C174: 1911 | D174: 4569 | H174: 68 | I174: 465 | J174: 106 | K174: 454 | M174: 237 | N174: 153 | O174: 135 | P174: 5 | Q174: 16 | S174: 109 | U174: 50 | V174: 5 | W174: 206 | AG174: 53 | AH174: 2.9 | AX174: 60.9 | AY174: 60.9 | BA174: 0.08903508772 | BC174: 77.9 | BD174: 77.9 | BF174: 0.1138888889 | BR174: 18.3 | BS174: 18.3 | BU174: 0.02675438596 | BW174: 21 | BX174: 21 | BZ174: 0.03070175439 | CB174: 12 | CC174: 12 | CE174: 0.01754385965 | CK174: 2.6 | CL174: 2.6 | CN174: 0.003801169591 | GG174: 60 | GH174: 4.2222 | GM174: 800 | GS174: 3387 | GT174: 3.387 | GU174: 342 | GV174: 684 | GW174: 684 | HB174: 94 | HC174: 0.094
A175: Australia | B175: 2 | C175: 1912 | D175: 4733 | H175: 72 | AG175: 48 | AH175: 2.4 | AX175: 71 | AY175: 71 | BA175: 0.09673024523 | BC175: 77.7 | BD175: 77.7 | BF175: 0.1058583106 | BR175: 21.1 | BS175: 21.1 | BU175: 0.02874659401 | BW175: 22 | BX175: 22 | BZ175: 0.02997275204 | CB175: 13 | CC175: 13 | CE175: 0.01771117166 | CK175: 2.5 | CL175: 2.5 | CN175: 0.00340599455 | GG175: 70 | GH175: 4.9259 | GI175: 71 | GJ175: 4.41975 | GM175: 803 | GS175: 3762 | GT175: 3.762 | GU175: 367 | GV175: 734 | GW175: 734 | HB175: 119 | HC175: 0.119
A176: Australia | B176: 2 | C176: 1913 | D176: 4872 | H176: 72 | AG176: 103 | AH176: 5 | AI176: 208 | AJ176: 50 | AK176: 623 | AX176: 72.5 | AY176: 72.5 | BA176: 0.09039900249 | BC176: 76.8 | BD176: 76.8 | BF176: 0.0957605985 | BR176: 22 | BS176: 22 | BU176: 0.02743142145 | BW176: 22 | BX176: 22 | BZ176: 0.02743142145 | CB176: 13 | CC176: 13 | CE176: 0.01620947631 | CK176: 2.3 | CL176: 2.3 | CN176: 0.002867830424 | GG176: 72 | GH176: 5.06664 | GI176: 77 | GJ176: 4.79325 | GM176: 847 | GS176: 4172 | GT176: 4.172 | GU176: 401 | GV176: 802 | GW176: 802 | HB176: 142 | HC176: 0.142
A177: Australia | B177: 2 | C177: 1914 | D177: 4941 | H177: 71 | AG177: 68 | AH177: 3.3 | AI177: 337 | AJ177: 71 | BR177: 24.5 | BS177: 24.5 | BU177: 0.02835648148 | BW177: 22 | BX177: 22 | BZ177: 0.02546296296 | CB177: 12 | CC177: 12 | CE177: 0.01388888889 | CK177: 2.8 | CL177: 2.8 | CN177: 0.003240740741 | GG177: 69 | GH177: 4.85553 | GI177: 76 | GJ177: 4.731 | GM177: 876 | GS177: 4274 | GT177: 4.274 | GU177: 432 | GV177: 864 | GW177: 864 | HB177: 149 | HC177: 0.149
A178: Australia | B178: 2 | C178: 1915 | D178: 4932 | H178: 68 | AG178: 125 | AH178: 5.9 | AI178: 358 | AJ178: 81 | AK178: 993 | AX178: 58.2 | AY178: 58.2 | BA178: 0.06945107399 | BC178: 57.9 | BD178: 57.9 | BF178: 0.06909307876 | BR178: 40.3 | BS178: 40.3 | BU178: 0.04809069212 | BW178: 31 | BX178: 31 | BZ178: 0.0369928401 | CB178: 14 | CC178: 14 | CE178: 0.01670644391 | CK178: 3.3 | CL178: 3.3 | CN178: 0.003937947494 | CU178: 3.9 | CV178: 3.9 | GG178: 96 | GH178: 6.75552 | GI178: 80 | GJ178: 4.98 | GM178: 905 | GS178: 4297 | GT178: 4.297 | GU178: 419 | GV178: 838 | GW178: 838 | HB178: 128 | HC178: 0.128
A179: Australia | B179: 2 | C179: 1916 | D179: 4875 | H179: 70 | AG179: 74 | AH179: 3.5 | AI179: 508 | AJ179: 171 | AK179: 1645 | AX179: 70 | AY179: 70 | BA179: 0.07223942208 | BC179: 64.1 | BD179: 64.1 | BF179: 0.06615067079 | BR179: 67.6 | BS179: 67.6 | BU179: 0.0697626419 | BW179: 34 | BX179: 34 | BZ179: 0.0350877193 | CB179: 12 | CC179: 12 | CE179: 0.01238390093 | CK179: 3.2 | CL179: 3.2 | CN179: 0.003302373581 | CU179: 5.6 | CV179: 5.6 | GG179: 90 | GH179: 6.3333 | GI179: 89 | GJ179: 5.54025 | GM179: 929 | GS179: 3782 | GT179: 3.782 | GU179: 484.5 | GV179: 969 | GW179: 969 | HB179: 121 | HC179: 0.121
A180: Australia | B180: 2 | C180: 1917 | D180: 4935 | H180: 56 | AG180: 72 | AH180: 3.3 | AI180: 444 | AJ180: 174 | AK180: 4689 | AX180: 69.1 | AY180: 69.1 | BA180: 0.06761252446 | BC180: 86.3 | BD180: 86.3 | BF180: 0.08444227006 | BR180: 88 | BS180: 88 | BU180: 0.08610567515 | BW180: 37 | BX180: 37 | BZ180: 0.0362035225 | CB180: 9.5 | CC180: 9.5 | CE180: 0.009295499022 | CK180: 3.7 | CL180: 3.7 | CN180: 0.00362035225 | CU180: 7.4 | CV180: 7.4 | GG180: 100 | GH180: 7.037 | GI180: 91 | GJ180: 5.66475 | GM180: 942 | GS180: 4027 | GT180: 4.027 | GU180: 511 | GV180: 1022 | GW180: 1022 | HB180: 119 | HC180: 0.119
A181: Australia | B181: 2 | C181: 1918 | D181: 5081 | H181: 59 | AG181: 74 | AH181: 3.4 | AI181: 298 | AJ181: 56 | AK181: 540 | AX181: 55.3 | AY181: 55.3 | BA181: 0.05207156309 | BC181: 75.1 | BD181: 75.1 | BF181: 0.07071563089 | BR181: 91.3 | BS181: 91.3 | BU181: 0.08596986817 | BW181: 45 | BX181: 45 | BZ181: 0.04237288136 | CB181: 12 | CC181: 12 | CE181: 0.01129943503 | CK181: 5.8 | CL181: 5.8 | CN181: 0.005461393597 | CU181: 10 | CV181: 10 | GG181: 116 | GH181: 8.16292 | GI181: 97 | GJ181: 6.03825 | GM181: 971 | GS181: 4626 | GT181: 4.626 | GU181: 531 | GV181: 1062 | GW181: 1062 | HB181: 106 | HC181: 0.106
A182: Australia | B182: 2 | C182: 1919 | D182: 5304 | H182: 69 | AG182: 78 | AH182: 3.6 | AI182: 460 | AJ182: 158 | AK182: 4304 | AV182: 461 | AW182: 461 | AX182: 86.3 | AY182: 86.3 | BA182: 0.07537117904 | BC182: 107 | BD182: 107 | BF182: 0.09344978166 | BR182: 108 | BS182: 108 | BU182: 0.0943231441 | BW182: 53 | BX182: 53 | BZ182: 0.04628820961 | CB182: 14 | CC182: 14 | CE182: 0.01222707424 | CK182: 7.9 | CL182: 7.9 | CN182: 0.006899563319 | CU182: 13 | CV182: 13 | GG182: 124 | GH182: 8.72588 | GI182: 104 | GJ182: 6.474 | GM182: 975 | GS182: 6395 | GT182: 6.395 | GU182: 572.5 | GV182: 1145 | GW182: 1145 | HB182: 136 | HC182: 0.136
A183: Australia | B183: 2 | C183: 1920 | D183: 5360 | H183: 69 | AG183: 71 | AH183: 3.4 | AI183: 554 | AJ183: 156 | AK183: 3587 | AV183: 487 | AW183: 487 | AX183: 90 | AY183: 90 | BA183: 0.07182761373 | BC183: 144 | BD183: 144 | BF183: 0.114924182 | BR183: 96.4 | BS183: 96.4 | BU183: 0.07693535515 | BW183: 66 | BX183: 66 | BZ183: 0.0526735834 | CB183: 22 | CC183: 22 | CE183: 0.01755786113 | CK183: 10 | CL183: 10 | CN183: 0.00798084597 | CU183: 14 | CV183: 14 | GG183: 149 | GH183: 10.48513 | GI183: 117 | GJ183: 7.28325 | GM183: 994 | GS183: 7865 | GT183: 7.865 | GU183: 626.5 | GV183: 1253 | GW183: 1253 | HB183: 201 | HC183: 0.201
A184: Australia | B184: 2 | C184: 1921 | D184: 5455 | H184: 66 | I184: 522 | J184: 67 | K184: 605 | M184: 275 | N184: 201 | O184: 162 | P184: 10 | Q184: 10 | S184: 119 | U184: 80 | V184: 7 | W184: 240 | AG184: 125 | AH184: 5.8 | AI184: 624 | AJ184: 165 | AK184: 1286 | AV184: 546 | AW184: 546 | AX184: 149 | AY184: 149 | BA184: 0.1078147612 | BC184: 127 | BD184: 127 | BF184: 0.09189580318 | BR184: 91.7 | BS184: 91.7 | BU184: 0.06635311143 | BW184: 64 | BX184: 64 | BZ184: 0.04630969609 | CB184: 17 | CC184: 17 | CE184: 0.01230101302 | CK184: 10 | CL184: 10 | CN184: 0.007235890014 | CU184: 17 | CV184: 17 | GG184: 114 | GH184: 8.02218 | GI184: 119 | GJ184: 7.40775 | GM184: 1018 | GS184: 7963 | GT184: 7.963 | GU184: 691 | GV184: 1382 | GW184: 1382 | HB184: 239 | HC184: 0.239
A185: Australia | B185: 2 | C185: 1922 | D185: 5570 | H185: 53 | AG185: 137 | AH185: 6.1 | AI185: 445 | AJ185: 116 | AK185: 859 | AV185: 648 | AW185: 648 | AX185: 94 | AY185: 94 | BA185: 0.06821480406 | BC185: 124 | BD185: 124 | BF185: 0.08998548621 | BR185: 77 | BS185: 77 | BU185: 0.05587808418 | BW185: 64 | BX185: 64 | BZ185: 0.04644412192 | CB185: 23 | CC185: 23 | CE185: 0.01669085631 | CK185: 10 | CL185: 10 | CN185: 0.007256894049 | CU185: 13 | CV185: 13 | GG185: 106 | GH185: 7.45922 | GI185: 108 | GJ185: 6.723 | GM185: 1039 | GS185: 7770 | GT185: 7.77 | GU185: 689 | GV185: 1378 | GW185: 1378 | HB185: 253 | HC185: 0.253
A186: Australia | B186: 2 | C186: 1923 | D186: 5693 | H186: 61 | AG186: 116 | AH186: 5 | AI186: 274 | AJ186: 76 | AK186: 1146 | AV186: 673 | AW186: 673 | AX186: 120 | AY186: 120 | BA186: 0.07947019868 | BC186: 116 | BD186: 116 | BF186: 0.07682119205 | BR186: 70 | BS186: 70 | BU186: 0.04635761589 | BW186: 65 | BX186: 65 | BZ186: 0.04304635762 | CB186: 25 | CC186: 25 | CE186: 0.01655629139 | CK186: 11 | CL186: 11 | CN186: 0.007284768212 | CU186: 11 | CV186: 11 | GG186: 117 | GH186: 8.23329 | GI186: 106 | GJ186: 6.5985 | GM186: 1056 | GS186: 7335 | GT186: 7.335 | GU186: 755 | GV186: 1510 | GW186: 1510 | HB186: 269 | HC186: 0.269
A187: Australia | B187: 2 | C187: 1924 | D187: 5811 | H187: 57 | AG187: 111 | AH187: 4.7 | AI187: 504 | AJ187: 152 | AK187: 919 | AV187: 975 | AW187: 975 | AX187: 128 | AY187: 128 | BA187: 0.0815806246 | BC187: 117 | BD187: 117 | BF187: 0.07456978967 | BR187: 75.9 | BS187: 75.9 | BU187: 0.04837476099 | BW187: 68 | BX187: 68 | BZ187: 0.04333970682 | CB187: 26 | CC187: 26 | CE187: 0.01657106437 | CK187: 11 | CL187: 11 | CN187: 0.007010834927 | CU187: 11 | CV187: 11 | GG187: 114 | GH187: 8.02218 | GI187: 106 | GJ187: 6.5985 | GM187: 1091 | GS187: 7338 | GT187: 7.338 | GU187: 784.5 | GV187: 1569 | GW187: 1569 | HB187: 286 | HC187: 0.286
A188: Australia | B188: 2 | C188: 1925 | D188: 5939 | H188: 53 | AG188: 154 | AH188: 6.3 | AI188: 499 | AJ188: 177 | AK188: 1129 | AV188: 1375 | AW188: 1375 | AX188: 133 | AY188: 133 | BA188: 0.07723577236 | BC188: 161 | BD188: 161 | BF188: 0.09349593496 | BR188: 74.4 | BS188: 74.4 | BU188: 0.04320557491 | BW188: 70 | BX188: 70 | BZ188: 0.0406504065 | CB188: 28 | CC188: 28 | CE188: 0.0162601626 | CK188: 11 | CL188: 11 | CN188: 0.006387921022 | CU188: 11 | CV188: 11 | GG188: 111 | GH188: 7.81107 | GI188: 107 | GJ188: 6.66075 | GM188: 1101 | GS188: 7440 | GT188: 7.44 | GU188: 861 | GV188: 1722 | GW188: 1722 | HB188: 297 | HC188: 0.297
A189: Australia | B189: 2 | C189: 1926 | D189: 6056 | H189: 54 | AG189: 121 | AH189: 4.9 | AI189: 360 | AJ189: 113 | AK189: 1310 | AV189: 1537 | AW189: 1537 | AX189: 137 | AY189: 137 | BA189: 0.08257986739 | BC189: 144 | BD189: 144 | BF189: 0.08679927667 | BR189: 81.1 | BS189: 81.1 | BU189: 0.0488848704 | BW189: 76 | BX189: 76 | BZ189: 0.04581072936 | CB189: 32 | CC189: 32 | CE189: 0.01928872815 | CK189: 12 | CL189: 12 | CN189: 0.007233273056 | CU189: 11 | CV189: 11 | GG189: 110 | GH189: 7.7407 | GI189: 108 | GJ189: 6.723 | GM189: 1118 | GS189: 7771 | GT189: 7.771 | GU189: 829.5 | GV189: 1659 | GW189: 1659 | HB189: 299 | HC189: 0.299
A190: Australia | B190: 2 | C190: 1927 | D190: 6182 | H190: 55 | AG190: 105 | AH190: 4.2 | AI190: 441 | AJ190: 201 | AK190: 1714 | AV190: 1730 | AW190: 1730 | AX190: 149 | AY190: 149 | BA190: 0.08617698091 | BC190: 133 | BD190: 133 | BF190: 0.07692307692 | BR190: 82.7 | BS190: 82.7 | BU190: 0.04783111625 | BW190: 74 | BX190: 74 | BZ190: 0.04279930596 | CB190: 30 | CC190: 30 | CE190: 0.01735106998 | CK190: 12 | CL190: 12 | CN190: 0.006940427993 | CU190: 10 | CV190: 10 | GG190: 110 | GH190: 7.7407 | GI190: 108 | GJ190: 6.723 | GM190: 1136 | GS190: 7871 | GT190: 7.871 | GU190: 864.5 | GV190: 1729 | GW190: 1729 | HB190: 315 | HC190: 0.315
A191: Australia | B191: 2 | C191: 1928 | D191: 6302 | H191: 53 | AG191: 158 | AH191: 6.2 | AI191: 287 | AJ191: 96 | AK191: 777 | AV191: 2194 | AW191: 2194 | AX191: 134 | AY191: 134 | BA191: 0.07705577918 | BC191: 138 | BD191: 138 | BF191: 0.0793559517 | BR191: 87 | BS191: 87 | BU191: 0.05002875216 | BW191: 75 | BX191: 75 | BZ191: 0.04312823462 | CB191: 30 | CC191: 30 | CE191: 0.01725129385 | CK191: 12 | CL191: 12 | CN191: 0.006900517539 | CU191: 9.8 | CV191: 9.8 | GG191: 108 | GH191: 7.59996 | GI191: 110 | GJ191: 6.8475 | GM191: 1158 | GS191: 7988 | GT191: 7.988 | GU191: 869.5 | GV191: 1739 | GW191: 1739 | HB191: 316 | HC191: 0.316
A192: Australia | B192: 2 | C192: 1929 | D192: 6394 | H192: 51 | AG192: 173 | AH192: 6.7 | AI192: 259 | AJ192: 105 | AK192: 4461 | AV192: 2286 | AW192: 2286 | AX192: 130 | AY192: 130 | BA192: 0.07593457944 | BC192: 139 | BD192: 139 | BF192: 0.08119158879 | BR192: 86 | BS192: 86 | BU192: 0.05023364486 | BW192: 77 | BX192: 77 | BZ192: 0.04497663551 | CB192: 30 | CC192: 30 | CE192: 0.01752336449 | CK192: 12 | CL192: 12 | CN192: 0.007009345794 | CU192: 11 | CV192: 11 | GG192: 108 | GH192: 7.59996 | GI192: 111 | GJ192: 6.90975 | GM192: 1171 | GS192: 8497 | GT192: 8.497 | GU192: 856 | GV192: 1712 | GW192: 1712 | HB192: 297 | HC192: 0.297
A193: Australia | B193: 2 | C193: 1930 | D193: 6463 | H193: 47 | AG193: 250 | AH193: 9.8 | AI193: 183 | AJ193: 54 | AK193: 1511 | AV193: 2436 | AW193: 2436 | AX193: 119 | AY193: 119 | BA193: 0.07598978289 | BC193: 98 | BD193: 98 | BF193: 0.0625798212 | BR193: 85.7 | BS193: 85.7 | BU193: 0.05472541507 | BW193: 70 | BX193: 70 | BZ193: 0.04469987229 | CB193: 18 | CC193: 18 | CE193: 0.01149425287 | CK193: 10 | CL193: 10 | CN193: 0.006385696041 | CU193: 14 | CV193: 14 | GG193: 96 | GH193: 6.75552 | GI193: 111 | GJ193: 6.90975 | GM193: 1156 | GS193: 9.5 | GT193: 9.5 | GU193: 783 | GV193: 1566 | GW193: 1566 | HB193: 230 | HC193: 0.23
A194: Australia | B194: 2 | C194: 1931 | D194: 6526 | H194: 42 | I194: 569 | J194: 68 | K194: 404 | L194: 324 | M194: 339 | N194: 212 | O194: 177 | P194: 146 | Q194: 20 | S194: 137 | T194: 1 | U194: 112 | V194: 12 | W194: 297 | X194: 51 | AG194: 419 | AH194: 16.4 | AI194: 134 | AJ194: 38 | AK194: 246 | AV194: 2446 | AW194: 2446 | AX194: 62 | AY194: 62 | BA194: 0.04817404817 | BC194: 90 | BD194: 90 | BF194: 0.06993006993 | BR194: 82.3 | BS194: 82.3 | BU194: 0.06394716395 | BW194: 72 | BX194: 72 | BZ194: 0.05594405594 | CB194: 19 | CC194: 19 | CE194: 0.01476301476 | CK194: 9.8 | CL194: 9.8 | CN194: 0.007614607615 | CU194: 13 | CV194: 13 | GG194: 86 | GH194: 6.05182 | GI194: 102 | GJ194: 6.3495 | GM194: 1158 | GS194: 9.8 | GT194: 9.8 | GU194: 643.5 | GV194: 1287 | GW194: 1287 | HB194: 168 | HC194: 0.168
A195: Australia | B195: 2 | C195: 1932 | D195: 6577 | H195: 41 | AG195: 514 | AH195: 19.7 | AI195: 127 | AJ195: 33 | AK195: 212 | AV195: 2507 | AW195: 2507 | AX195: 51 | AY195: 51 | BA195: 0.04214876033 | BC195: 96 | BD195: 96 | BF195: 0.07933884298 | BR195: 73.7 | BS195: 73.7 | BU195: 0.06090909091 | BW195: 74 | BX195: 74 | BZ195: 0.06115702479 | CB195: 21 | CC195: 21 | CE195: 0.0173553719 | CK195: 12 | CL195: 12 | CN195: 0.009917355372 | CU195: 11 | CV195: 11 | GG195: 85 | GH195: 5.98145 | GI195: 98 | GJ195: 6.1005 | GM195: 1155 | GS195: 9.9 | GT195: 9.9 | GU195: 605 | GV195: 1210 | GW195: 1210 | HB195: 117 | HC195: 0.117
A196: Australia | B196: 2 | C196: 1933 | D196: 6630 | H196: 39 | AG196: 517 | AH196: 18.9 | AI196: 90 | AJ196: 30 | AK196: 112 | AV196: 2716 | AW196: 2716 | AX196: 65 | AY196: 65 | BA196: 0.05142405063 | BC196: 98 | BD196: 98 | BF196: 0.07753164557 | BR196: 70.5 | BS196: 70.5 | BU196: 0.05577531646 | BW196: 74 | BX196: 74 | BZ196: 0.0585443038 | CB196: 22 | CC196: 22 | CE196: 0.01740506329 | CK196: 12 | CL196: 12 | CN196: 0.009493670886 | CU196: 9.3 | CV196: 9.3 | GG196: 85 | GH196: 5.98145 | GI196: 94 | GJ196: 5.8515 | GM196: 1152 | GS196: 9.9 | GT196: 9.9 | GU196: 632 | GV196: 1264 | GW196: 1264 | HB196: 130 | HC196: 0.13
A197: Australia | B197: 2 | C197: 1934 | D197: 6677 | H197: 44 | AG197: 441 | AH197: 16 | AI197: 155 | AJ197: 51 | AK197: 370 | AV197: 2910 | AW197: 2910 | AX197: 68 | AY197: 68 | BA197: 0.05014749263 | BC197: 114 | BD197: 114 | BF197: 0.08407079646 | BR197: 73.2 | BS197: 73.2 | BU197: 0.05398230088 | BW197: 77 | BX197: 77 | BZ197: 0.05678466077 | CB197: 25 | CC197: 25 | CE197: 0.01843657817 | CK197: 13 | CL197: 13 | CN197: 0.009587020649 | CU197: 8.8 | CV197: 8.8 | GG197: 89 | GH197: 6.26293 | GI197: 94 | GJ197: 5.8515 | GM197: 1144 | GS197: 10 | GT197: 10 | GU197: 678 | GV197: 1356 | GW197: 1356 | HB197: 149 | HC197: 0.149
A198: Australia | B198: 2 | C198: 1935 | D198: 6726 | H198: 40 | AG198: 394 | AH198: 14 | AI198: 183 | AJ198: 47 | AK198: 495 | AV198: 3199 | AW198: 3199 | AX198: 83 | AY198: 83 | BA198: 0.05796089385 | BC198: 104 | BD198: 104 | BF198: 0.07262569832 | BR198: 78.6 | BS198: 78.6 | BU198: 0.05488826816 | BW198: 82 | BX198: 82 | BZ198: 0.05726256983 | CB198: 28 | CC198: 28 | CE198: 0.01955307263 | CK198: 13 | CL198: 13 | CN198: 0.009078212291 | CU198: 8.8 | CV198: 8.8 | GG198: 89 | GH198: 6.26293 | GI198: 94 | GJ198: 5.8515 | GM198: 1143 | GS198: 10 | GT198: 10 | GU198: 716 | GV198: 1432 | GW198: 1432 | HB198: 197 | HC198: 0.197
A199: Australia | B199: 2 | C199: 1936 | D199: 6778 | H199: 41 | AG199: 310 | AH199: 11 | AI199: 235 | AJ199: 61 | AK199: 497 | AV199: 3528 | AW199: 3528 | AX199: 95 | AY199: 95 | BA199: 0.06035578145 | BC199: 124 | BD199: 124 | BF199: 0.07878017789 | BR199: 80.3 | BS199: 80.3 | BU199: 0.05101651842 | BW199: 83 | BX199: 83 | BZ199: 0.05273189327 | CB199: 29 | CC199: 29 | CE199: 0.01842439644 | CK199: 14 | CL199: 14 | CN199: 0.008894536213 | CU199: 8.6 | CV199: 8.6 | GG199: 93 | GH199: 6.54441 | GI199: 95 | GJ199: 5.91375 | GM199: 1140 | GS199: 11 | GT199: 11 | GU199: 787 | GV199: 1574 | GW199: 1574 | HB199: 219 | HC199: 0.219
A200: Australia | B200: 2 | C200: 1937 | D200: 6836 | H200: 38 | AG200: 249 | AH200: 8.8 | AI200: 342 | AJ200: 96 | AK200: 557 | AV200: 3972 | AW200: 3972 | AX200: 103 | AY200: 103 | BA200: 0.05998835178 | BC200: 148 | BD200: 148 | BF200: 0.08619685498 | BR200: 84.2 | BS200: 84.2 | BU200: 0.04903902155 | BW200: 89 | BX200: 89 | BZ200: 0.05183459522 | CB200: 33 | CC200: 33 | CE200: 0.01921956902 | CK200: 15 | CL200: 15 | CN200: 0.008736167734 | CU200: 9.4 | CV200: 9.4 | GG200: 100 | GH200: 7.037 | GI200: 98 | GJ200: 6.1005 | GM200: 1123 | GS200: 11 | GT200: 11 | GU200: 858.5 | GV200: 1717 | GW200: 1717 | HB200: 239 | HC200: 0.239
... 692 more rows
